Workbook

Sheet OVERALL RATING
B3: =CONCATENATE(D49," ",F49) -> 0 0
C7: Clean Air Index | E7: Energy Efficiency Index | G7: Greenhouse Gas Index
C8: 32.6 | E8: 40.5
C9: ='Clean Air'!B6 -> WLTC | D9: ='Clean Air'!F14 -> 10 | E9: Energy Consumption (WLTC-cold 14o C) | F9: =Efficiency!F10 -> 10 | G9: =Greenhouse!B6 -> WLTC | H9: =Greenhouse!F12 -> 7
C10: ='Clean Air'!B15 -> WLTC-CAT | D10: ='Clean Air'!$F$23 -> 10 | E10: Energy Consumption (WLTC-cold -7o C) | F10: =Efficiency!F11 -> 10 | G10: =Greenhouse!B13 -> WLTC-CAT | H10: =Greenhouse!F19 -> 7
C11: ='Clean Air'!B24 -> WLTC-warm | D11: ='Clean Air'!F32 -> 10 | E11: Energy Consumption (WLTC-warm) | F11: =SUM(Efficiency!F12:F14) -> 10 | G11: =Greenhouse!B20 -> WLTC-warm | H11: =Greenhouse!F26 -> 7
C12: ='Clean Air'!B54 -> BAB130 | D12: ='Clean Air'!F62 -> 10 | E12: Energy Consumption (BAB130) | F12: =Efficiency!F15 -> 10 | G12: =Greenhouse!B44 -> BAB130 | H12: =Greenhouse!F50 -> 7
C13: ='Clean Air'!B34 -> PEMS+ cold engine 1 | D13: ='Clean Air'!F42 -> 5 | E13: =Efficiency!C13 -> PEMS+ cold engine1 | F13: =IF(Efficiency!F13=0,"-",Efficiency!F13) -> - | G13: =Greenhouse!B28 -> PEMS+ cold engine 1 | H13: =IF(Greenhouse!D28=0,"-",Greenhouse!F34) -> -
C14: ='Clean Air'!B43 -> PEMS+ cold engine 2 | D14: ='Clean Air'!F51 -> 5 | E14: =Efficiency!C14 -> PEMS+ cold engine2 | F14: =IF(Efficiency!F14=0,"-",Efficiency!F14) -> - | G14: =Greenhouse!$B$35 -> PEMS+ cold engine 2 | H14: =IF(Greenhouse!D35=0,"-",Greenhouse!F41) -> -
C15: ='Clean Air'!$B$63 -> PEMS light test | D15: ='Clean Air'!F71 -> 5 | G15: ='Clean Air'!$B$63 -> PEMS light test | H15: =IF(Greenhouse!D51=0,"-",Greenhouse!F57) -> -
C16: ='Clean Air'!$B$72 -> PEMS heavy test | D16: ='Clean Air'!F80 -> 8 | G16: ='Clean Air'!$B$72 -> PEMS heavy test | H16: =IF(Greenhouse!D58=0,"-",Greenhouse!F64) -> -
C17: ='Clean Air'!$B$81 -> PEMS 8km (1) | D17: ='Clean Air'!F88 -> 5 | E17: Driving Range 1) | F17: =IF(Efficiency!F47=0,"-",Efficiency!F47) -> - | G17: ='Clean Air'!$B$81 -> PEMS 8km (1) | H17: =IF(Greenhouse!D65=0,"-",Greenhouse!F71) -> -
C18: ='Clean Air'!$B$89 -> PEMS Congestion | D18: ='Clean Air'!F98 -> 2 | E18: Driving Resistance 1) | F18: =IF(Efficiency!F48=0,"-",Efficiency!F48) -> -
B19: Total Score | C19: ='Clean Air'!F109 -> 70 | E19: =Efficiency!E50 -> 40 | G19: =Greenhouse!F82 -> 28
B20: Max Points available | C20: ='Clean Air'!D109 -> 70 | E20: =Efficiency!D50 -> 40 | G20: =Greenhouse!D82 -> 28
B21: Index | C21: =ROUNDDOWN(10*C19/C20,1) -> 10 | E21: =ROUNDDOWN(10*E19/E20,1) -> 10 | G21: =ROUNDDOWN(10*G19/G20,1) -> 10
B22: Weighting Factors | C22: =100/3 -> 33.33333333 | E22: =100/3 -> 33.33333333 | G22: =100/3 -> 33.33333333
B23: Weighted Overall Index | C23: =ROUNDDOWN((C21*C22+E22*E21+G22*G21)/100,1) -> 10 | J23: =ROUND(MAX(IF(C23>=F26:F35,E26:E35)),1) -> 5
E25: Stars | F25: Threshold
E26: 5 | F26: 9
E27: 4.5 | F27: 8
E28: 4 | F28: 7
E29: 3.5 | F29: 6
E30: 3 | F30: 5
E31: 2.5 | F31: 4
E32: 2 | F32: 3
E33: 1.5 | F33: 2
E34: 1 | F34: 1
E35: 0 | F35: 0
B39: RATING REQUIREMENTS 2021
C40: 9 | E40: 7.5 | G40: 4 | L40: =IF(AND($C$21:$H$21>=C40:H40),1,0) -> 1
C41: 7 | E41: 6 | G41: =G40-1 -> 3 | L41: =IF(AND($C$21:$H$21>=C41:H41),1,0) -> 1
C42: 5 | E42: 4.5 | G42: =G41-1 -> 2 | L42: =IF(AND($C$21:$H$21>=C42:H42),1,0) -> 1
C43: 3 | E43: 3 | G43: 1 | L43: =IF(AND($C$21:$H$21>=C43:H43),1,0) -> 1
C44: 1 | E44: 1.5 | G44: 0 | L44: =IF(AND($C$21:$H$21>=C44:H44),1,0) -> 1
B46: 1): test not operational yet | L46: =SUM(L40:L44) -> 5
C48: TEST DETAILS
C49: Vehicle | D49: =SPECS!B1 -> 0 | F49: =SPECS!$B$2 -> 0
C50: Specs (cc/kW) | D50: =IF(SPECS!B22=0,"-",SPECS!B22) -> - | E50: cc | F50: =IF(SPECS!B23=0,"-",SPECS!B23) -> - | G50: kW
C51: Applies to VIN: | D51: =IF(SPECS!B18=0,"-",SPECS!B18) -> -
C52: Powerunit(s) | D52: =IF(Petrol,"petrol",IF(Diesel,"diesel", "-")) -> petrol | E52: =IF(Electric,"electric","-") -> - | F52: =IF(CNG_Dual,"CNG Bi-Fuel","-") -> - | G52: =IF(CNG_Mono,"CNG monovalent","-") -> -
C53: Actual mass (kg) | D53: =SPECS!B26 -> 0
C54: Average Energy Use (Lab tests) | F54: Driving Range (avg Lab tests)
C55: liquid fuel | D55: =IF(Efficiency!M$19>0,Efficiency!M$19,"n.a.") -> n.a. | E55: l/100km | F55: =IF(Efficiency!M32>0,Efficiency!M34,"n.a.") -> n.a. | H55: km
C56: gaseous fuel | D56: =IF(Efficiency!S$19>0,Efficiency!S$19,"n.a.") -> n.a. | E56: kg/100km | F56: =IF(Efficiency!S32>0,Efficiency!S34,"n.a.") -> n.a. | H56: km
C57: electric energy | D57: =IF(Efficiency!P$19>0,Efficiency!P$19,"n.a.") -> n.a. | E57: kWh/100km | F57: =IF(Efficiency!P32>0,Efficiency!P34,"n.a.") -> n.a. | H57: km
C58: Worst case Energy Use (Lab tests) | F58: Driving range (worst case Lab tests)
C59: liquid fuel | D59: =IF(Efficiency!M$20>0,Efficiency!M$20,"n.a.") -> n.a. | E59: l/100km | F59: =IF(Efficiency!M33>0,Efficiency!M35,"n.a.") -> n.a. | H59: km
C60: gaseous fuel | D60: =IF(Efficiency!S$20>0,Efficiency!S$20,"n.a.") -> n.a. | E60: kg/100km | F60: =IF(Efficiency!S33>0,Efficiency!S35,"n.a.") -> n.a. | H60: km
C61: electric energy | D61: =IF(Efficiency!P$20>0,Efficiency!P$20,"n.a.") -> n.a. | E61: kWh/100km | F61: =IF(Efficiency!P33>0,Efficiency!P35,"n.a.") -> n.a. | H61: km

Sheet Clean Air
Q1: 1
B2: 1. Pollutants | E2: Test Results | G2: Limits | I2: Max score | K2: Fall Back Fuel
E4: Value | F4: Points | G4: lower | H4: upper | K4: Value
B5: 1.1 | C5: Regulatory Tailpipe Emission Lab Tests
B6: WLTC | C6: max points | D6: =SUM(I7:I13) -> 10
B7: (14 degr C) | C7: NMHC | D7: mg/km | E7: =RESULTS!$O4-RESULTS!$P4 -> 0 | F7: =IF(OR(Hydrogen,Electric),I7,IF(E7=0,Sliding_Scale(E7,G7,H7,I7,0,Slide_Type),IF(K7/E7>='LIMITS Efficiency'!$E$25,(1-'LIMITS Efficiency'!$E$26)*Sliding_Scale(E7,G7,H7,I7,0,Slide_Type),Sliding_Scale(E7,G7,H7,I7,0,Slide_Type)))) -> 2 | G7: ='LIMITS Clean Air'!$D$15 -> 0 | H7: =IF(OR(Petrol,CNG_Mono,CNG_Dual),'LIMITS Clean Air'!C$5,IF(Diesel,'LIMITS Clean Air'!D5,0)) -> 58 | I7: 2 | K7: =RESULTS!$O$26 -> 0
C8: NOx | D8: mg/km | E8: =RESULTS!$H$4 -> 0 | F8: =IF(OR(Hydrogen,Electric),I8,IF(E8=0,Sliding_Scale(E8,G8,H8,I8,0,Slide_Type),IF(K8/E8>='LIMITS Efficiency'!$E$25,(1-'LIMITS Efficiency'!$E$26)*Sliding_Scale(E8,G8,H8,I8,0,Slide_Type),Sliding_Scale(E8,G8,H8,I8,0,Slide_Type)))) -> 3 | G8: ='LIMITS Clean Air'!$D$16 -> 0 | H8: =IF(OR(Petrol,CNG_Mono,CNG_Dual),'LIMITS Clean Air'!C$6,IF(Diesel,'LIMITS Clean Air'!D$6,0)) -> 60 | I8: 3 | K8: =RESULTS!$H$26 -> 0
C9: NO2 | D9: mg/km | E9: =RESULTS!$J$4 -> 0 | F9: =IF(OR(Hydrogen,Electric),I9,IF(E9=0,Sliding_Scale(E9,G9,H9,I9,0,Slide_Type),IF(K9/E9>='LIMITS Efficiency'!$E$25,(1-'LIMITS Efficiency'!$E$26)*Sliding_Scale(E9,G9,H9,I9,0,Slide_Type),Sliding_Scale(E9,G9,H9,I9,0,Slide_Type)))) -> 0 | G9: ='LIMITS Clean Air'!$D$17 -> 0 | H9: =IF(OR(Petrol,CNG_Mono,CNG_Dual),'LIMITS Clean Air'!C$7,IF(Diesel,'LIMITS Clean Air'!D$7,0)) -> 20 | I9: 0 | K9: =RESULTS!$M$26 -> 0
C10: NH3 | D10: mg/km | E10: =RESULTS!$N$4 -> 0 | F10: =IF(OR(Hydrogen,Electric),I10,IF(E10=0,Sliding_Scale(E10,G10,H10,I10,0,Slide_Type),IF(K10/E10>='LIMITS Efficiency'!$E$25,(1-'LIMITS Efficiency'!$E$26)*Sliding_Scale(E10,G10,H10,I10,0,Slide_Type),Sliding_Scale(E10,G10,H10,I10,0,Slide_Type)))) -> 1 | G10: ='LIMITS Clean Air'!$D$18 -> 0 | H10: =IF(OR(Petrol,CNG_Mono,CNG_Dual),'LIMITS Clean Air'!C$8,IF(Diesel,'LIMITS Clean Air'!D$8,0)) -> 10 | I10: 1 | K10: =RESULTS!$N$26 -> 0
C11: CO | D11: mg/km | E11: =RESULTS!$G$4 -> 0 | F11: =IF(OR(Hydrogen,Electric),I11,IF(E11=0,Sliding_Scale(E11,G11,H11,I11,0,Slide_Type),IF(K11/E11>='LIMITS Efficiency'!$E$25,(1-'LIMITS Efficiency'!$E$26)*Sliding_Scale(E11,G11,H11,I11,0,Slide_Type),Sliding_Scale(E11,G11,H11,I11,0,Slide_Type)))) -> 1 | G11: ='LIMITS Clean Air'!$D$19 -> 0 | H11: =IF(OR(Petrol,CNG_Mono,CNG_Dual),'LIMITS Clean Air'!D$9,IF(Diesel,'LIMITS Clean Air'!D$9,0)) -> 500 | I11: 1 | K11: =RESULTS!$G$26 -> 0
C12: PM | D12: mg/km | E12: =RESULTS!$L$4 -> 0 | F12: =IF(OR(Hydrogen,Electric),I12,IF(E12=0,Sliding_Scale(E12,G12,H12,I12,0,Slide_Type),IF(K12/E12>='LIMITS Efficiency'!$E$25,(1-'LIMITS Efficiency'!$E$26)*Sliding_Scale(E12,G12,H12,I12,0,Slide_Type),Sliding_Scale(E12,G12,H12,I12,0,Slide_Type)))) -> 0 | G12: ='LIMITS Clean Air'!$D$20 -> 0 | H12: =IF(OR(Petrol,CNG_Mono,CNG_Dual),'LIMITS Clean Air'!C$10,IF(Diesel,'LIMITS Clean Air'!D$10,0)) -> 4.5 | I12: 0 | K12: =RESULTS!$L$26 -> 0
B13: =IF(E13=0,0,LOG10(E13)) -> 0 | C13: PN | E13: =RESULTS!$K$4 -> 0 | F13: =IF(E13=0,I13,PN_Score(B13,I13)) -> 3 | G13: ='LIMITS Clean Air'!$D$21 -> 0 | H13: =IF(OR(Petrol,CNG_Mono,CNG_Dual),'LIMITS Clean Air'!C$11,IF(Diesel,'LIMITS Clean Air'!D$11,0)) -> 600000000000 | I13: 3 | K13: =RESULTS!$K$26 -> 0
B14: total | F14: =IF(OR(E7:E9>'LIMITS Clean Air'!$E$5:$E$7,'Clean Air'!E11:E13>'LIMITS Clean Air'!$E$9:$E$11,K7:K9>'LIMITS Clean Air'!$E$5:$E$7,'Clean Air'!K11:K13>'LIMITS Clean Air'!$E$9:$E$11),0,MAX(SUM('Clean Air'!F7:F13),0)) -> 10
B15: WLTC-CAT | C15: max points | D15: =SUM(I16:I22) -> 10
B16: (-7 degr C) | C16: NMHC | D16: mg/km | E16: =RESULTS!$O$7-RESULTS!$P$7 -> 0 | F16: =IF(OR(Hydrogen,Electric),I16,IF(E16=0,Sliding_Scale(E16,G16,H16,I16,0,Slide_Type),IF(K16/E16>='LIMITS Efficiency'!$E$25,(1-'LIMITS Efficiency'!$E$26)*Sliding_Scale(E16,G16,H16,I16,0,Slide_Type),Sliding_Scale(E16,G16,H16,I16,0,Slide_Type)))) -> 2 | G16: ='LIMITS Clean Air'!$O$15 -> 0 | H16: =IF(OR(Petrol,CNG_Mono,CNG_Dual),'LIMITS Clean Air'!M$5,IF(Diesel,'LIMITS Clean Air'!N$5,0)) -> 76.56 | I16: 2
C17: NOx | D17: mg/km | E17: =RESULTS!$H$7 -> 0 | F17: =IF(OR(Hydrogen,Electric),I17,IF(E17=0,Sliding_Scale(E17,G17,H17,I17,0,Slide_Type),IF(K17/E17>='LIMITS Efficiency'!$E$25,(1-'LIMITS Efficiency'!$E$26)*Sliding_Scale(E17,G17,H17,I17,0,Slide_Type),Sliding_Scale(E17,G17,H17,I17,0,Slide_Type)))) -> 3 | G17: ='LIMITS Clean Air'!$O$16 -> 0 | H17: =IF(OR(Petrol,CNG_Mono,CNG_Dual),'LIMITS Clean Air'!M$6,IF(Diesel,'LIMITS Clean Air'!N$6,0)) -> 79.2 | I17: 3
C18: NO2 | D18: mg/km | E18: =RESULTS!$J$7 -> 0 | F18: =IF(OR(Hydrogen,Electric),I18,IF(E18=0,Sliding_Scale(E18,G18,H18,I18,0,Slide_Type),IF(K18/E18>='LIMITS Efficiency'!$E$25,(1-'LIMITS Efficiency'!$E$26)*Sliding_Scale(E18,G18,H18,I18,0,Slide_Type),Sliding_Scale(E18,G18,H18,I18,0,Slide_Type)))) -> 0 | G18: ='LIMITS Clean Air'!$O$17 -> 0 | H18: =IF(OR(Petrol,CNG_Mono,CNG_Dual),'LIMITS Clean Air'!M$7,IF(Diesel,'LIMITS Clean Air'!N$7,0)) -> 26.4 | I18: 0
C19: NH3 | D19: mg/km | E19: =RESULTS!$N$7 -> 0 | F19: =IF(OR(Hydrogen,Electric),I19,IF(E19=0,Sliding_Scale(E19,G19,H19,I19,0,Slide_Type),IF(K19/E19>='LIMITS Efficiency'!$E$25,(1-'LIMITS Efficiency'!$E$26)*Sliding_Scale(E19,G19,H19,I19,0,Slide_Type),Sliding_Scale(E19,G19,H19,I19,0,Slide_Type)))) -> 1 | G19: ='LIMITS Clean Air'!$O18 -> 0 | H19: =IF(OR(Petrol,CNG_Mono,CNG_Dual),'LIMITS Clean Air'!M$8,IF(Diesel,'LIMITS Clean Air'!N$8,0)) -> 13.2 | I19: 1
C20: CO | D20: mg/km | E20: =RESULTS!$G$7 -> 0 | F20: =IF(OR(Hydrogen,Electric),I20,IF(E20=0,Sliding_Scale(E20,G20,H20,I20,0,Slide_Type),IF(K20/E20>='LIMITS Efficiency'!$E$25,(1-'LIMITS Efficiency'!$E$26)*Sliding_Scale(E20,G20,H20,I20,0,Slide_Type),Sliding_Scale(E20,G20,H20,I20,0,Slide_Type)))) -> 1 | G20: ='LIMITS Clean Air'!$O$19 -> 0 | H20: =IF(OR(Petrol,CNG_Mono,CNG_Dual),'LIMITS Clean Air'!M$9,IF(Diesel,'LIMITS Clean Air'!N$9,0)) -> 660 | I20: 1
C21: PM | D21: mg/km | E21: =RESULTS!$L$7 -> 0 | F21: =IF(OR(Hydrogen,Electric),I21,IF(E21=0,Sliding_Scale(E21,G21,H21,I21,0,Slide_Type),IF(K21/E21>='LIMITS Efficiency'!$E$25,(1-'LIMITS Efficiency'!$E$26)*Sliding_Scale(E21,G21,H21,I21,0,Slide_Type),Sliding_Scale(E21,G21,H21,I21,0,Slide_Type)))) -> 0 | G21: ='LIMITS Clean Air'!$O$20 -> 0 | H21: =IF(OR(Petrol,CNG_Mono,CNG_Dual),'LIMITS Clean Air'!M$10,IF(Diesel,'LIMITS Clean Air'!N$10,0)) -> 5.94 | I21: 0
B22: =IF(E22=0,0,LOG10(E22)) -> 0 | C22: PN | E22: =RESULTS!$K$7 -> 0 | F22: =IF(E22=0,I22,PN_Score(B22,I22)) -> 3 | G22: ='LIMITS Clean Air'!$O$21 -> 0 | H22: =IF(OR(Petrol,CNG_Mono,CNG_Dual),'LIMITS Clean Air'!M$11,IF(Diesel,'LIMITS Clean Air'!N$11,0)) -> 792000000000 | I22: 3
B23: total | F23: =IF(OR(E16:E18>'LIMITS Clean Air'!$O$5:$O$7,E20:E22>'LIMITS Clean Air'!$O$9:$O$11),0,MAX(SUM('Clean Air'!F16:F22),0)) -> 10
B24: WLTC-warm | C24: max points | D24: =SUM(I25:I31) -> 10
B25: (warm) | C25: NMHC | D25: mg/km | E25: =RESULTS!$O$8-RESULTS!$P$8 -> 0 | F25: =IF(OR(Hydrogen,Electric),I25,IF(E25=0,Sliding_Scale(E25,G25,H25,I25,0,Slide_Type),IF(K25/E25>='LIMITS Efficiency'!$E$25,(1-'LIMITS Efficiency'!$E$26)*Sliding_Scale(E25,G25,H25,I25,0,Slide_Type),Sliding_Scale(E25,G25,H25,I25,0,Slide_Type)))) -> 2 | G25: ='LIMITS Clean Air'!$D$15 -> 0 | H25: =IF(OR(Petrol,CNG_Mono,CNG_Dual),'LIMITS Clean Air'!C$5,IF(Diesel,'LIMITS Clean Air'!D$5,0)) -> 58 | I25: 2
C26: NOx | D26: mg/km | E26: =RESULTS!$H$8 -> 0 | F26: =IF(OR(Hydrogen,Electric),I26,IF(E26=0,Sliding_Scale(E26,G26,H26,I26,0,Slide_Type),IF(K26/E26>='LIMITS Efficiency'!$E$25,(1-'LIMITS Efficiency'!$E$26)*Sliding_Scale(E26,G26,H26,I26,0,Slide_Type),Sliding_Scale(E26,G26,H26,I26,0,Slide_Type)))) -> 3 | G26: ='LIMITS Clean Air'!$D$16 -> 0 | H26: =IF(OR(Petrol,CNG_Mono,CNG_Dual),'LIMITS Clean Air'!C$6,IF(Diesel,'LIMITS Clean Air'!D$6,0)) -> 60 | I26: 3
C27: NO2 | D27: mg/km | E27: =RESULTS!$J$8 -> 0 | F27: =IF(OR(Hydrogen,Electric),I27,IF(E27=0,Sliding_Scale(E27,G27,H27,I27,0,Slide_Type),IF(K27/E27>='LIMITS Efficiency'!$E$25,(1-'LIMITS Efficiency'!$E$26)*Sliding_Scale(E27,G27,H27,I27,0,Slide_Type),Sliding_Scale(E27,G27,H27,I27,0,Slide_Type)))) -> 0 | G27: ='LIMITS Clean Air'!$D$17 -> 0 | H27: =IF(OR(Petrol,CNG_Mono,CNG_Dual),'LIMITS Clean Air'!C$7,IF(Diesel,'LIMITS Clean Air'!D$7,0)) -> 20 | I27: 0
C28: NH3 | D28: mg/km | E28: =RESULTS!$N$8 -> 0 | F28: =IF(OR(Hydrogen,Electric),I28,IF(E28=0,Sliding_Scale(E28,G28,H28,I28,0,Slide_Type),IF(K28/E28>='LIMITS Efficiency'!$E$25,(1-'LIMITS Efficiency'!$E$26)*Sliding_Scale(E28,G28,H28,I28,0,Slide_Type),Sliding_Scale(E28,G28,H28,I28,0,Slide_Type)))) -> 1 | G28: ='LIMITS Clean Air'!$D$18 -> 0 | H28: =IF(OR(Petrol,CNG_Mono,CNG_Dual),'LIMITS Clean Air'!C$8,IF(Diesel,'LIMITS Clean Air'!D$8,0)) -> 10 | I28: 1
C29: CO | D29: mg/km | E29: =RESULTS!G8 -> 0 | F29: =IF(OR(Hydrogen,Electric),I29,IF(E29=0,Sliding_Scale(E29,G29,H29,I29,0,Slide_Type),IF(K29/E29>='LIMITS Efficiency'!$E$25,(1-'LIMITS Efficiency'!$E$26)*Sliding_Scale(E29,G29,H29,I29,0,Slide_Type),Sliding_Scale(E29,G29,H29,I29,0,Slide_Type)))) -> 1 | G29: ='LIMITS Clean Air'!$D$19 -> 0 | H29: =IF(OR(Petrol,CNG_Mono,CNG_Dual),'LIMITS Clean Air'!C$9,IF(Diesel,'LIMITS Clean Air'!D$9,0)) -> 500 | I29: 1
C30: PM | D30: mg/km | E30: =RESULTS!$L$8 -> 0 | F30: =IF(OR(Hydrogen,Electric),I30,IF(E30=0,Sliding_Scale(E30,G30,H30,I30,0,Slide_Type),IF(K30/E30>='LIMITS Efficiency'!$E$25,(1-'LIMITS Efficiency'!$E$26)*Sliding_Scale(E30,G30,H30,I30,0,Slide_Type),Sliding_Scale(E30,G30,H30,I30,0,Slide_Type)))) -> 0 | G30: ='LIMITS Clean Air'!$D$20 -> 0 | H30: =IF(OR(Petrol,CNG_Mono,CNG_Dual),'LIMITS Clean Air'!C$10,IF(Diesel,'LIMITS Clean Air'!D$10,0)) -> 4.5 | I30: 0
B31: =IF(E31=0,0,LOG10(E31)) -> 0 | C31: PN | E31: =RESULTS!$K$8 -> 0 | F31: =IF(E31=0,I31,PN_Score(B31,I31)) -> 3 | G31: ='LIMITS Clean Air'!$D$21 -> 0 | H31: =IF(OR(Petrol,CNG_Mono,CNG_Dual),'LIMITS Clean Air'!C$11,IF(Diesel,'LIMITS Clean Air'!D$11,0)) -> 600000000000 | I31: 3
B32: total | F32: =IF(OR(E25:E27>'LIMITS Clean Air'!$E$5:$E$7,'Clean Air'!E29:E31>'LIMITS Clean Air'!$E$9:$E$11),0,MAX(SUM('Clean Air'!F25:F31),0)) -> 10
B33: 1.2 | C33: Regulatory performance PEMS+
B34: PEMS+ cold engine 1 | C34: max points | D34: =SUM(I36:I41) -> 5
C35: HC | D35: mg/km | G35: ='LIMITS Clean Air'!$J$15 -> 0 | H35: =IF(OR(Petrol,CNG_Mono,CNG_Dual),'LIMITS Clean Air'!H$5,IF(Diesel,'LIMITS Clean Air'!I$5,0)) -> 76.56
C36: NOx | D36: mg/km | E36: =RESULTS!H11 -> 0 | F36: =IF(OR(Hydrogen,Electric),I36,IF(E36=0,Sliding_Scale(E36,G36,H36,I36,0,Slide_Type),IF(K36/E36>='LIMITS Efficiency'!$E$25,(1-'LIMITS Efficiency'!$E$26)*Sliding_Scale(E36,G36,H36,I36,0,Slide_Type),Sliding_Scale(E36,G36,H36,I36,0,Slide_Type)))) -> 2 | G36: ='LIMITS Clean Air'!$J$16 -> 0 | H36: =IF(OR(Petrol,CNG_Mono,CNG_Dual),'LIMITS Clean Air'!H$6,IF(Diesel,'LIMITS Clean Air'!I$6,0)) -> 79.2 | I36: 2 | K36: =RESULTS!H33 -> 0
C37: NO2 | D37: mg/km | G37: ='LIMITS Clean Air'!$D$17 -> 0 | H37: =IF(OR(Petrol,CNG_Mono,CNG_Dual),'LIMITS Clean Air'!H$7,IF(Diesel,'LIMITS Clean Air'!I$7,0)) -> 26.4 | I37: 0 | K37: =RESULTS!$M$33 -> 0
C38: NH3 | D38: mg/km | G38: ='LIMITS Clean Air'!$D$18 -> 0 | H38: =IF(OR(Petrol,CNG_Mono,CNG_Dual),'LIMITS Clean Air'!H$8,IF(Diesel,'LIMITS Clean Air'!I$8,0)) -> 13.2 | I38: 0 | K38: =RESULTS!$N$33 -> 0
C39: CO | D39: mg/km | E39: =RESULTS!$G$11 -> 0 | F39: =IF(OR(Hydrogen,Electric),I39,IF(E39=0,Sliding_Scale(E39,G39,H39,I39,0,Slide_Type),IF(K39/E39>='LIMITS Efficiency'!$E$25,(1-'LIMITS Efficiency'!$E$26)*Sliding_Scale(E39,G39,H39,I39,0,Slide_Type),Sliding_Scale(E39,G39,H39,I39,0,Slide_Type)))) -> 1 | G39: ='LIMITS Clean Air'!$J$19 -> 0 | H39: =IF(OR(Petrol,CNG_Mono,CNG_Dual),'LIMITS Clean Air'!H$9,IF(Diesel,'LIMITS Clean Air'!I$9,0)) -> 660 | I39: 1 | K39: =RESULTS!$G$33 -> 0
C40: PM | D40: mg/km | G40: ='LIMITS Clean Air'!$J$20 -> 0 | H40: =IF(OR(Petrol,CNG_Mono,CNG_Dual),'LIMITS Clean Air'!H$10,IF(Diesel,'LIMITS Clean Air'!I$10,0)) -> 5.94 | I40: 0
B41: =IF(E41=0,0,LOG10(E41)) -> 0 | C41: PN | E41: =RESULTS!$K$11 -> 0 | F41: =IF(E41=0,I41,PN_Score(B41,I41)) -> 2 | G41: ='LIMITS Clean Air'!$J$21 -> 0 | H41: =IF(OR(Petrol,CNG_Mono,CNG_Dual),'LIMITS Clean Air'!H$11,IF(Diesel,'LIMITS Clean Air'!I$11,0)) -> 792000000000 | I41: 2 | K41: =RESULTS!$K$33 -> 0
B42: Regulatory performance PEMS+ | F42: =IF(OR(E35:E41>'LIMITS Clean Air'!$J$5:$J$11),0,MAX(SUM('Clean Air'!F35:F41),0)) -> 5
B43: PEMS+ cold engine 2 | C43: max points | D43: =SUM(I45:I50) -> 5
C44: HC | D44: mg/km | G44: ='LIMITS Clean Air'!$J$15 -> 0 | H44: =IF(OR(Petrol,CNG_Mono,CNG_Dual),'LIMITS Clean Air'!H$5,IF(Diesel,'LIMITS Clean Air'!I$5,0)) -> 76.56
C45: NOx | D45: mg/km | E45: =RESULTS!H12 -> 0 | F45: =IF(OR(Hydrogen,Electric),I45,IF(E45=0,Sliding_Scale(E45,G45,H45,I45,0,Slide_Type),IF(K45/E45>='LIMITS Efficiency'!$E$25,(1-'LIMITS Efficiency'!$E$26)*Sliding_Scale(E45,G45,H45,I45,0,Slide_Type),Sliding_Scale(E45,G45,H45,I45,0,Slide_Type)))) -> 2 | G45: ='LIMITS Clean Air'!$J$16 -> 0 | H45: =IF(OR(Petrol,CNG_Mono,CNG_Dual),'LIMITS Clean Air'!H$6,IF(Diesel,'LIMITS Clean Air'!I$6,0)) -> 79.2 | I45: 2
C46: NO2 | D46: mg/km | G46: ='LIMITS Clean Air'!$D$17 -> 0 | H46: =IF(OR(Petrol,CNG_Mono,CNG_Dual),'LIMITS Clean Air'!H$7,IF(Diesel,'LIMITS Clean Air'!I$7,0)) -> 26.4 | I46: 0
C47: NH3 | D47: mg/km | G47: ='LIMITS Clean Air'!$D$18 -> 0 | H47: =IF(OR(Petrol,CNG_Mono,CNG_Dual),'LIMITS Clean Air'!H$8,IF(Diesel,'LIMITS Clean Air'!I$8,0)) -> 13.2 | I47: 0
C48: CO | D48: mg/km | E48: =RESULTS!G12 -> 0 | F48: =IF(OR(Hydrogen,Electric),I48,IF(E48=0,Sliding_Scale(E48,G48,H48,I48,0,Slide_Type),IF(K48/E48>='LIMITS Efficiency'!$E$25,(1-'LIMITS Efficiency'!$E$26)*Sliding_Scale(E48,G48,H48,I48,0,Slide_Type),Sliding_Scale(E48,G48,H48,I48,0,Slide_Type)))) -> 1 | G48: ='LIMITS Clean Air'!$J$19 -> 0 | H48: =IF(OR(Petrol,CNG_Mono,CNG_Dual),'LIMITS Clean Air'!H$9,IF(Diesel,'LIMITS Clean Air'!I$9,0)) -> 660 | I48: 1
C49: PM | D49: mg/km | G49: ='LIMITS Clean Air'!$J$20 -> 0 | H49: =IF(OR(Petrol,CNG_Mono,CNG_Dual),'LIMITS Clean Air'!H$10,IF(Diesel,'LIMITS Clean Air'!I$10,0)) -> 5.94 | I49: 0
B50: =IF(E50=0,0,LOG10(E50)) -> 0 | C50: PN | E50: =RESULTS!$K$12 -> 0 | F50: =IF(E50=0,I50,PN_Score(B50,I50)) -> 2 | G50: ='LIMITS Clean Air'!$J$21 -> 0 | H50: =IF(OR(Petrol,CNG_Mono,CNG_Dual),'LIMITS Clean Air'!H$11,IF(Diesel,'LIMITS Clean Air'!I$11,0)) -> 792000000000 | I50: 2
B51: Regulatory performance PEMS+ | F51: =IF(OR(E44:E50>'LIMITS Clean Air'!$J$5:$J$11),0,MAX(SUM('Clean Air'!F44:F50),0)) -> 5
B53: 1.3 | C53: Robustness
B54: BAB130 | C54: max points | D54: =SUM(I55:I61) -> 10
C55: NMHC | D55: mg/km | E55: =RESULTS!$O$10-RESULTS!$P$10 -> 0 | F55: =IF(OR(Hydrogen,Electric),I55,IF(E55=0,Sliding_Scale(E55,G55,H55,I55,0,Slide_Type),IF(K55/E55>='LIMITS Efficiency'!$E$25,(1-'LIMITS Efficiency'!$E$26)*Sliding_Scale(E55,G55,H55,I55,0,Slide_Type),Sliding_Scale(E55,G55,H55,I55,0,Slide_Type)))) -> 2 | G55: ='LIMITS Clean Air'!$D$15 -> 0 | H55: =IF(OR(Petrol,CNG_Mono,CNG_Dual),'LIMITS Clean Air'!C$5,IF(Diesel,'LIMITS Clean Air'!D$5,0)) -> 58 | I55: 2 | K55: =RESULTS!$O$32 -> 0
C56: NOx | D56: mg/km | E56: =RESULTS!$H$10 -> 0 | F56: =IF(OR(Hydrogen,Electric),I56,IF(E56=0,Sliding_Scale(E56,G56,H56,I56,0,Slide_Type),IF(K56/E56>='LIMITS Efficiency'!$E$25,(1-'LIMITS Efficiency'!$E$26)*Sliding_Scale(E56,G56,H56,I56,0,Slide_Type),Sliding_Scale(E56,G56,H56,I56,0,Slide_Type)))) -> 3 | G56: ='LIMITS Clean Air'!$D$16 -> 0 | H56: =IF(OR(Petrol,CNG_Mono,CNG_Dual),'LIMITS Clean Air'!C$6,IF(Diesel,'LIMITS Clean Air'!D$6,0)) -> 60 | I56: 3 | K56: =RESULTS!$H$32 -> 0
C57: NO2 | D57: mg/km | E57: =RESULTS!$J$10 -> 0 | F57: =IF(OR(Hydrogen,Electric),I57,IF(E57=0,Sliding_Scale(E57,G57,H57,I57,0,Slide_Type),IF(K57/E57>='LIMITS Efficiency'!$E$25,(1-'LIMITS Efficiency'!$E$26)*Sliding_Scale(E57,G57,H57,I57,0,Slide_Type),Sliding_Scale(E57,G57,H57,I57,0,Slide_Type)))) -> 0 | G57: ='LIMITS Clean Air'!$D$17 -> 0 | H57: =IF(OR(Petrol,CNG_Mono,CNG_Dual),'LIMITS Clean Air'!C$7,IF(Diesel,'LIMITS Clean Air'!D$7,0)) -> 20 | I57: 0 | K57: =RESULTS!$M$32 -> 0
C58: NH3 | D58: mg/km | E58: =RESULTS!$N$10 -> 0 | F58: =IF(OR(Hydrogen,Electric),I58,IF(E58=0,Sliding_Scale(E58,G58,H58,I58,0,Slide_Type),IF(K58/E58>='LIMITS Efficiency'!$E$25,(1-'LIMITS Efficiency'!$E$26)*Sliding_Scale(E58,G58,H58,I58,0,Slide_Type),Sliding_Scale(E58,G58,H58,I58,0,Slide_Type)))) -> 1 | G58: ='LIMITS Clean Air'!$D$18 -> 0 | H58: =IF(OR(Petrol,CNG_Mono,CNG_Dual),'LIMITS Clean Air'!C$8,IF(Diesel,'LIMITS Clean Air'!D$8,0)) -> 10 | I58: 1 | K58: =RESULTS!$N$32 -> 0
C59: CO | D59: mg/km | E59: =RESULTS!$G$10 -> 0 | F59: =IF(OR(Hydrogen,Electric),I59,IF(E59=0,Sliding_Scale(E59,G59,H59,I59,0,Slide_Type),IF(K59/E59>='LIMITS Efficiency'!$E$25,(1-'LIMITS Efficiency'!$E$26)*Sliding_Scale(E59,G59,H59,I59,0,Slide_Type),Sliding_Scale(E59,G59,H59,I59,0,Slide_Type)))) -> 1 | G59: ='LIMITS Clean Air'!$D$19 -> 0 | H59: =IF(OR(Petrol,CNG_Mono,CNG_Dual),'LIMITS Clean Air'!C$9,IF(Diesel,'LIMITS Clean Air'!D$9,0)) -> 500 | I59: 1 | K59: =RESULTS!$G$32 -> 0
C60: PM | D60: mg/km | E60: =RESULTS!$L$10 -> 0 | F60: =IF(OR(Hydrogen,Electric),I60,IF(E60=0,Sliding_Scale(E60,G60,H60,I60,0,Slide_Type),IF(K60/E60>='LIMITS Efficiency'!$E$25,(1-'LIMITS Efficiency'!$E$26)*Sliding_Scale(E60,G60,H60,I60,0,Slide_Type),Sliding_Scale(E60,G60,H60,I60,0,Slide_Type)))) -> 0 | G60: ='LIMITS Clean Air'!$D$20 -> 0 | H60: =IF(OR(Petrol,CNG_Mono,CNG_Dual),'LIMITS Clean Air'!C$9,IF(Diesel,'LIMITS Clean Air'!D$9,0)) -> 500 | I60: 0 | K60: =RESULTS!$L$32 -> 0
B61: =IF(E61=0,0,LOG10(E61)) -> 0 | C61: PN | E61: =RESULTS!$K$10 -> 0 | F61: =IF(E61=0,I61,PN_Score(B61,I61)) -> 3 | G61: ='LIMITS Clean Air'!$D$21 -> 0 | H61: =IF(OR(Petrol,CNG_Mono,CNG_Dual),'LIMITS Clean Air'!C$11,IF(Diesel,'LIMITS Clean Air'!D$11,0)) -> 600000000000 | I61: 3 | K61: =RESULTS!$K$32 -> 0
F62: =IF(OR(E55:E57>'LIMITS Clean Air'!$E$5:$E$7,'Clean Air'!E59:E61>'LIMITS Clean Air'!$E$9:$E$11,K55:K57>'LIMITS Clean Air'!$E$5:$E$7,'Clean Air'!K59:K61>'LIMITS Clean Air'!$E$9:$E$11),0,MAX(SUM('Clean Air'!F55:F61),0)) -> 10
B63: PEMS light test | C63: max points | D63: =SUM(I64:I70) -> 5
C64: NMHC | D64: mg/km | G64: ='LIMITS Clean Air'!$J$15 -> 0 | H64: =IF(OR(Petrol,CNG_Mono,CNG_Dual),'LIMITS Clean Air'!H$5,IF(Diesel,'LIMITS Clean Air'!I$5,0)) -> 76.56 | I64: 0
C65: NOx | D65: mg/km | E65: =RESULTS!$H$15 -> 0 | F65: =IF(E65<=E36,I65,IF(E65<'Clean Air'!H36,(0.5*I65),0)) -> 2.25 | G65: ='LIMITS Clean Air'!$J$16 -> 0 | H65: =IF(OR(Petrol,CNG_Mono,CNG_Dual),'LIMITS Clean Air'!H$6,IF(Diesel,'LIMITS Clean Air'!I$6,0)) -> 79.2 | I65: 2.25
C66: NO2 | D66: mg/km | G66: ='LIMITS Clean Air'!$D$17 -> 0 | H66: =IF(OR(Petrol,CNG_Mono,CNG_Dual),'LIMITS Clean Air'!H$7,IF(Diesel,'LIMITS Clean Air'!I$7,0)) -> 26.4 | I66: 0
C67: NH3 | D67: mg/km | G67: ='LIMITS Clean Air'!$D$18 -> 0 | H67: =IF(OR(Petrol,CNG_Mono,CNG_Dual),'LIMITS Clean Air'!H$8,IF(Diesel,'LIMITS Clean Air'!I$8,0)) -> 13.2 | I67: 0
C68: CO | D68: mg/km | E68: =RESULTS!$G$15 -> 0 | F68: =IF(E68<=E39,I68,IF(E68<'Clean Air'!H39,(0.5*I68),0)) -> 0.5 | G68: ='LIMITS Clean Air'!$J$19 -> 0 | H68: =IF(OR(Petrol,CNG_Mono,CNG_Dual),'LIMITS Clean Air'!H$9,IF(Diesel,'LIMITS Clean Air'!I$9,0)) -> 660 | I68: 0.5
C69: PM | D69: mg/km | G69: ='LIMITS Clean Air'!$J$20 -> 0 | H69: =IF(OR(Petrol,CNG_Mono,CNG_Dual),'LIMITS Clean Air'!H$10,IF(Diesel,'LIMITS Clean Air'!I$10,0)) -> 5.94 | I69: 0
B70: =IF(E70=0,0,LOG10(E70)) -> 0 | C70: PN | E70: =RESULTS!$K$15 -> 0 | F70: =IF(E70=0,I70,PN_Score(B70,I70)) -> 2.25 | G70: ='LIMITS Clean Air'!$J$21 -> 0 | H70: =IF(OR(Petrol,CNG_Mono,CNG_Dual),'LIMITS Clean Air'!H$11,IF(Diesel,'LIMITS Clean Air'!I$11,0)) -> 792000000000 | I70: 2.25
F71: =IF(OR(E64:E70>'LIMITS Clean Air'!$J$5:$J$11),0,MAX(SUM('Clean Air'!F64:F70),0)) -> 5 | AC71: Test | AD71: Upper limit | AE71: Distribution of points
B72: PEMS heavy test | C72: max points | D72: =SUM(I73:I79) -> 8 | M72: 0 | N72: =IF(M72=0,0,LOG(M72,$Y$1)) -> 0 | O72: 3 | AC72: Light test | AD72: Same as PEMS+ | AE72: 100% of the points when result is lower than PEMS+ regular result
C73: NMHC | D73: mg/km | G73: ='LIMITS Clean Air'!$J$15 -> 0 | H73: =IF(OR(Petrol,CNG_Mono,CNG_Dual),'LIMITS Clean Air'!M$5,IF(Diesel,'LIMITS Clean Air'!N$5,0)) -> 76.56 | I73: 0 | M73: 10 | N73: =LOG10(M73) -> 1 | O73: =PN_Score(N73,3) -> 2.875 | AE73: 50% of the points when result is between PEMS+ regular result and PEMS+ limit
B74: =Sliding_Scale(E74,H36,'LIMITS Clean Air'!O6,I74,0,Slide_Type) -> 3.6 | C74: NOx | D74: mg/km | E74: =RESULTS!H16 -> 0 | F74: =IF(F36=0,0,IF(E74<=H36,I74,0)) -> 3.6 | G74: ='LIMITS Clean Air'!D16 -> 0 | H74: =IF(OR(Petrol,CNG_Mono,CNG_Dual),'LIMITS Clean Air'!M$6,IF(Diesel,'LIMITS Clean Air'!N$6,0)) -> 79.2 | I74: 3.6 | M74: 100 | N74: =LOG10(M74) -> 2 | O74: =PN_Score(N74,3) -> 2.75 | AE74: No points when PEMS+ limits are exceeded
C75: NO2 | D75: mg/km | G75: ='LIMITS Clean Air'!$D$17 -> 0 | H75: =IF(OR(Petrol,CNG_Mono,CNG_Dual),'LIMITS Clean Air'!M$7,IF(Diesel,'LIMITS Clean Air'!N$7,0)) -> 26.4 | I75: 0 | M75: 1000 | N75: 3 | O75: 2.625 | AC75: Heavy test | AD75: Same as PEMS+ | AE75: 100% of the points when result is between PEMS+ regular result and lower than PEMS+ regular limits
C76: NH3 | D76: mg/km | G76: ='LIMITS Clean Air'!$D$18 -> 0 | H76: =IF(OR(Petrol,CNG_Mono,CNG_Dual),'LIMITS Clean Air'!M$8,IF(Diesel,'LIMITS Clean Air'!N$8,0)) -> 13.2 | I76: 0 | M76: 10000 | N76: 4 | O76: 2.5 | AE76: 0-100% of the points (sliding scale), depending on the location between the PEMS+ regular limits and and the PEMS+ heavy limits
B77: =Sliding_Scale(E77,H39,'LIMITS Clean Air'!O9,I77,0,Slide_Type) -> 0.8 | C77: CO | D77: mg/km | E77: =RESULTS!$G$16 -> 0 | F77: =IF(F39=0,0,IF(E77<=H39,I77,0)) -> 0.8 | G77: ='LIMITS Clean Air'!D19 -> 0 | H77: =IF(OR(Petrol,CNG_Mono,CNG_Dual),'LIMITS Clean Air'!M$9,IF(Diesel,'LIMITS Clean Air'!N$9,0)) -> 660 | I77: 0.8 | M77: 100000 | N77: 5 | O77: 2.375 | AE77: No points when PEMS+ heavy limits (CF2.1) regular are exceeded or when the PEMS+ regular test has 0 points
C78: PM | D78: mg/km | G78: ='LIMITS Clean Air'!$J$20 -> 0 | H78: =IF(OR(Petrol,CNG_Mono,CNG_Dual),'LIMITS Clean Air'!M$10,IF(Diesel,'LIMITS Clean Air'!N$10,0)) -> 5.94 | I78: 0 | M78: 1000000 | N78: 6 | O78: 2.25 | AC78: Heavy test and short trip with cold start | AD78: Conformity factor of 2,1 instead of 1.5 | AE78: 100% of the points when result is between PEMS+ regular result and below PEMS+ regular limits
B79: =IF(E79=0,0,LOG10(E79)) -> 0 | C79: PN | E79: =RESULTS!$K$16 -> 0 | F79: =IF(E79=0,I79,PN_Score(B79,I79)) -> 3.6 | G79: ='LIMITS Clean Air'!$J$21 -> 0 | H79: =IF(OR(Petrol,CNG_Mono,CNG_Dual),'LIMITS Clean Air'!M$11,IF(Diesel,'LIMITS Clean Air'!N$11,0)) -> 792000000000 | I79: 3.6 | M79: 10000000 | N79: 7 | O79: 2.125 | AD79: Gross excess limit | AE79: 0-100% of the points (sliding scale), depending on the location between the PEMS+ regular limits and and the PEMS+ heavy gross excess limits
F80: =IF(OR(E73:E79>'LIMITS Clean Air'!$O$5:$O$11),0,MAX(SUM('Clean Air'!F73:F79),0)) -> 8 | M80: 100000000 | N80: 8 | O80: 2 | AE80: No points when PEMS+ heavy gross excess limits are exceeded or when the PEMS+ regular test has 0 points
B81: PEMS 8km (1) | C81: max points | D81: =SUM(I82:I87) -> 5 | M81: 1000000000 | N81: 9 | O81: 1.470619375
B82: (cold start / short trip) | C82: NOx | D82: mg/km | E82: =RESULTS!H13 -> 0 | F82: =IF(OR(Hydrogen,Electric),I82,IF(F36=0,0,IF(OR($E$82>='LIMITS Clean Air'!$O$6,$E$85>='LIMITS Clean Air'!O6),0,I82-(E82/'LIMITS Clean Air'!$O$6)*I82))) -> 1.125 | G82: ='LIMITS Clean Air'!D16 -> 0 | H82: =IF(OR(Petrol,CNG_Mono,CNG_Dual),'LIMITS Clean Air'!H$6,IF(Diesel,'LIMITS Clean Air'!I$6,0)) -> 79.2 | I82: =2.25/2 -> 1.125 | M82: 10000000000 | N82: 10 | O82: 0.9412387507
C83: CO | D83: mg/km | E83: =RESULTS!$G$13 -> 0 | F83: =IF(OR(Hydrogen,Electric),I83,IF(F39=0,0,IF(OR($E$83>'LIMITS Clean Air'!$O$9,$E$86>='LIMITS Clean Air'!$O$9),0,I83-(E83/'LIMITS Clean Air'!$O$9)*I83))) -> 0.25 | G83: ='LIMITS Clean Air'!D19 -> 0 | H83: =IF(OR(Petrol,CNG_Mono,CNG_Dual),'LIMITS Clean Air'!H$9,IF(Diesel,'LIMITS Clean Air'!I$9,0)) -> 660 | I83: =0.5/2 -> 0.25 | M83: 100000000000 | N83: 11 | O83: 0.411858126
B84: =IF(E84=0,0,LOG10(E84)) -> 0 | C84: PN | E84: =RESULTS!$K$13 -> 0 | F84: =IF(OR(Hydrogen,Electric),I84,IF(OR($E$84>=$H$84,$E$87>=$H$87),0,I84-(E84/H84)*I84)) -> 1.125 | G84: ='LIMITS Clean Air'!$J$21 -> 0 | H84: =IF(OR(Petrol,CNG_Mono,CNG_Dual),'LIMITS Clean Air'!H$11,IF(Diesel,'LIMITS Clean Air'!I$11,0)) -> 792000000000 | I84: =2.25/2 -> 1.125 | M84: 600000000000 | N84: 11.77815125 | O84: -8.006902257e-05
B85: PEMS 8km (2) | C85: NOx | D85: mg/km | E85: =RESULTS!H14 -> 0 | F85: =IF(OR(Hydrogen,Electric),I85,IF(F36=0,0,IF(OR($E$82>='LIMITS Clean Air'!$O$6,$E$85>='LIMITS Clean Air'!$O$6),0,I85-(E85/'LIMITS Clean Air'!$O$6)*I85))) -> 1.125 | G85: ='LIMITS Clean Air'!D16 -> 0 | H85: =IF(OR(Petrol,CNG_Mono,CNG_Dual),'LIMITS Clean Air'!H$6,IF(Diesel,'LIMITS Clean Air'!I$6,0)) -> 79.2 | I85: =2.25/2 -> 1.125
B86: (cold start / short trip) | C86: CO | D86: mg/km | E86: =RESULTS!$G$14 -> 0 | F86: =IF(OR(Hydrogen,Electric),I86,IF(F39=0,0,IF(OR($E$83>='LIMITS Clean Air'!$O$9,$E$86>='LIMITS Clean Air'!$O$9),0,I86-(E86/'LIMITS Clean Air'!$O$9)*I86))) -> 0.25 | G86: ='LIMITS Clean Air'!D19 -> 0 | H86: =IF(OR(Petrol,CNG_Mono,CNG_Dual),'LIMITS Clean Air'!H$9,IF(Diesel,'LIMITS Clean Air'!I$9,0)) -> 660 | I86: =0.5/2 -> 0.25
B87: =IF(E87=0,0,LOG10(E87)) -> 0 | C87: PN | E87: =RESULTS!$K$14 -> 0 | F87: =IF(OR(Hydrogen,Electric),I87,IF(OR($E$84>=$H$84,$E$87>=$H$87),0,I87-(E87/H87)*I87)) -> 1.125 | G87: ='LIMITS Clean Air'!$J$21 -> 0 | H87: =IF(OR(Petrol,CNG_Mono,CNG_Dual),'LIMITS Clean Air'!H$11,IF(Diesel,'LIMITS Clean Air'!I$11,0)) -> 792000000000 | I87: =2.25/2 -> 1.125
B88: average tests 1 and 2: | F88: =SUM(F82:F87) -> 5
B89: PEMS Congestion | C89: max points | D89: =SUM(I90:I97) -> 2 | G89: max | H89: avg
C90: NMHC | D90: mg/s | I90: 0 | T90: =ALS(E82<=$E$36;($F$36/I45)*I82;ALS(EN((E82<H82);(E82/G82)<1);(I82-(E82/H82)*I82);0))
C91: NOx AVG | D91: mg/s | E91: =RESULTS!$H$19 -> 0 | F91: =IF(E91<H91,I91,F95) -> 1 | H91: ='LIMITS Clean Air'!S6 -> 0.5 | I91: 1
C92: NOx MAX | D92: mg/s | E92: =RESULTS!$H$18 -> 0 | F92: =IF(AND(E91<H91,E92<H92),I92,0) -> 1 | H92: ='LIMITS Clean Air'!R6 -> 1 | I92: 1
C93: NO2 | D93: mg/s | I93: 0
C94: NH3 | D94: mg/s | I94: 0
C95: CO | D95: mg/s | I95: 0
C96: PM | D96: mg/s | I96: 0
B97: =IF(E97=0,0,LOG10(E97)) -> 0 | C97: PN | I97: 0
F98: =SUM(F91:F97) -> 2
B105: SUMMARY
B106: =B5 -> 1.1 | C106: =C5 -> Regulatory Tailpipe Emission Lab Tests | D106: =SUM(D6,D15,D24,) -> 30 | F106: =ROUNDDOWN(SUM(F14,F23,F32),1) -> 30
B107: =B33 -> 1.2 | C107: =C33 -> Regulatory performance PEMS+ | D107: =SUM(D34,D43) -> 10 | F107: =ROUNDDOWN(SUM(F42,F51),1) -> 10
B108: =B53 -> 1.3 | C108: =C53 -> Robustness | D108: =SUM(D54,D63,D72,D81,D89,) -> 30 | F108: =ROUNDDOWN(SUM(F62,F71,F80,F88,F98),1) -> 30
B109: TOTAL | D109: =SUM(D106:D108) -> 70 | F109: =SUM(F106:F108) -> 70
H110: test distribution
H111: LAB | I111: =SUM(D6,D15,D24,D54) -> 40
H112: PEMS | I112: =SUM(D89,D81,D72,D63,D43,D34) -> 30
B113: TOTAL SCORE POLLUTANTS | D113: (0-10pts) | F113: =ROUNDDOWN(10*F109/D109,1) -> 10

Sheet Efficiency
B2: 2. Efficiency | E2: Test Results | G2: Limits | I2: Max score
E4: Value | F4: Points | G4: lower | H4: upper
B6: 2.1 | C6: Test cycle measurements
B8: 2.1.2 | C8: Energy Consumption (total) | K8: 2.1.2.1 | N8: 2.1.2.2 | Q8: 2.1.2.3
C9: max points | D9: =I19 -> 40 | K9: Fuel Consumption (ICE liq. fuel) | N9: Energy Consumption (Electr. mode) | Q9: Fuel Consumption (ICE, CNG, Hydrogen fuel cell)
B10: Lab tests | C10: WLTC cold (14 degr C) | D10: kWh/100km | E10: =IF(Petrol,Efficiency!M10*'LIMITS Efficiency'!$C$18,IF(Diesel,Efficiency!M10*'LIMITS Efficiency'!$C$19,IF(OR(CNG_Mono,CNG_Dual),S10*'LIMITS Efficiency'!$C$20,IF(Hydrogen,S10*'LIMITS Efficiency'!$C$22,0)))+P10) -> 0 | F10: =MAX(0,Sliding_Scale(E10,G10,H10,I10,0,Slide_Type)) -> 10 | G10: ='LIMITS Efficiency'!E6 -> 30 | H10: ='LIMITS Efficiency'!F6 -> 90 | I10: 10 | K10: WLTC cold (14 degr C) | L10: l/100km | M10: =IF(OR(Petrol,Diesel),MAX(RESULTS!$Q$4,RESULTS!$Q$26),0) -> 0 | N10: WLTC cold (14 degr C) | O10: kWh/100km | P10: =IF(Electric,MAX(RESULTS!R4,RESULTS!R26),0) -> 0 | Q10: WLTC cold (14 degr C) | R10: kg/100km | S10: =IF(OR(CNG_Mono,CNG_Dual,Hydrogen),MAX(RESULTS!U4,RESULTS!U26),0) -> 0
C11: WLTC cold (-7 degr C) | D11: kWh/100km | E11: =IF(Petrol,Efficiency!M11*'LIMITS Efficiency'!$C$18,IF(Diesel,Efficiency!M11*'LIMITS Efficiency'!$C$19,IF(OR(CNG_Mono,CNG_Dual),S11*'LIMITS Efficiency'!$C$20,IF(Hydrogen,S11*'LIMITS Efficiency'!$C$22,0)))+P11) -> 0 | F11: =MAX(0,Sliding_Scale(E11,G11,H11,I11,0,Slide_Type)) -> 10 | G11: ='LIMITS Efficiency'!E7 -> 30 | H11: ='LIMITS Efficiency'!F7 -> 90 | I11: 10 | K11: WLTC cold (-7 degr C) | L11: l/100km | M11: =IF(OR(Petrol,Diesel),MAX(RESULTS!$Q$7,RESULTS!$Q$29),0) -> 0 | N11: WLTC cold (-7 degr C) | O11: kWh/100km | P11: =IF(Electric,MAX(RESULTS!R7,RESULTS!R29),0) -> 0 | Q11: WLTC cold (-7 degr C) | R11: kg/100km | S11: =IF(OR(CNG_Mono,CNG_Dual,Hydrogen),MAX(RESULTS!U7,RESULTS!U29),0) -> 0
C12: WLTC-warm | D12: kWh/100km | E12: =IF(Petrol,Efficiency!M12*'LIMITS Efficiency'!$C$18,IF(Diesel,Efficiency!M12*'LIMITS Efficiency'!$C$19,IF(OR(CNG_Mono,CNG_Dual),S12*'LIMITS Efficiency'!$C$20,IF(Hydrogen,S12*'LIMITS Efficiency'!$C$22,0))))+P12 -> 0 | F12: =MAX(0,Sliding_Scale(E12,G12,H12,I12,0,Slide_Type)) -> 10 | G12: ='LIMITS Efficiency'!E8 -> 30 | H12: ='LIMITS Efficiency'!F8 -> 90 | I12: 10 | K12: WLTC-warm | L12: l/100km | M12: =IF(OR(Petrol,Diesel),MAX(RESULTS!$Q$8,RESULTS!$Q$30),0) -> 0 | N12: WLTC-warm | O12: kWh/100km | P12: =IF(Electric,MAX(RESULTS!R8,RESULTS!R30),0) -> 0 | Q12: WLTC-warm | R12: kg/100km | S12: =IF(OR(CNG_Mono,CNG_Dual,Hydrogen),MAX(RESULTS!U8,RESULTS!U30),0) -> 0
B13: PEMS | C13: PEMS+ cold engine1 | D13: kWh/100km | G13: ='LIMITS Efficiency'!E11 -> 30 | H13: ='LIMITS Efficiency'!F11 -> 90 | I13: 0 | K13: PEMS+ cold engine1 | L13: l/100km | M13: =IF(OR(Petrol,Diesel),MAX(RESULTS!$Q$11,RESULTS!$Q$33),0) -> 0 | N13: PEMS+ cold engine1 | O13: kWh/100km | P13: =IF(Electric,MAX(RESULTS!R11,RESULTS!R33),0) -> 0 | Q13: PEMS+ cold engine1 | R13: kg/100km | S13: =IF(OR(CNG_Mono,CNG_Dual,Hydrogen),MAX(RESULTS!U11,RESULTS!U33),0) -> 0
C14: PEMS+ cold engine2 | D14: kWh/100km | G14: ='LIMITS Efficiency'!E10 -> 30 | H14: ='LIMITS Efficiency'!F10 -> 90 | I14: 0 | K14: PEMS+ cold engine2 | L14: l/100km | M14: =IF(OR(Petrol,Diesel),MAX(RESULTS!$Q$12,RESULTS!$Q$34),0) -> 0 | N14: PEMS+ cold engine2 | O14: kWh/100km | P14: =IF(Electric,MAX(RESULTS!R12,RESULTS!R34),0) -> 0 | Q14: PEMS+ cold engine2 | R14: kg/100km | S14: =IF(OR(CNG_Mono,CNG_Dual,Hydrogen),MAX(RESULTS!U12,RESULTS!U34),0) -> 0
B15: robustness | C15: Bab130 | D15: kWh/100km | E15: =IF(Petrol,Efficiency!M15*'LIMITS Efficiency'!$C$18,IF(Diesel,Efficiency!M15*'LIMITS Efficiency'!$C$19,IF(OR(CNG_Mono,CNG_Dual),S15*'LIMITS Efficiency'!$C$20,IF(Hydrogen,S15*'LIMITS Efficiency'!$C$22,0))))+P15 -> 0 | F15: =MAX(0,Sliding_Scale(E15,G15,H15,I15,0,2)) -> 10 | G15: ='LIMITS Efficiency'!E12 -> 30 | H15: ='LIMITS Efficiency'!F12 -> 90 | I15: 10 | K15: Bab130 | L15: l/100km | M15: =IF(OR(Petrol,Diesel),MAX(RESULTS!$Q$10,RESULTS!$Q$32),0) -> 0 | N15: Bab130 | O15: kWh/100km | P15: =IF(Electric,MAX(RESULTS!R10,RESULTS!R32),0) -> 0 | Q15: Bab130 | R15: kg/100km | S15: =IF(OR(CNG_Mono,CNG_Dual,Hydrogen),MAX(RESULTS!U10,RESULTS!U32),0) -> 0
C16: PEMS light test | D16: kWh/100km | G16: ='LIMITS Efficiency'!$E$13 -> 30 | H16: ='LIMITS Efficiency'!$F$13 -> 90 | I16: 0 | K16: PEMS light test | L16: l/100km | M16: =IF(OR(Petrol,Diesel),MAX(RESULTS!$Q$15,RESULTS!$Q$37),0) -> 0 | N16: PEMS light test | O16: kWh/100km | P16: =IF(Electric,MAX(RESULTS!R15,RESULTS!R37),0) -> 0 | Q16: PEMS light test | R16: kg/100km | S16: =IF(OR(CNG_Mono,CNG_Dual,Hydrogen),MAX(RESULTS!U15,RESULTS!U37),0) -> 0
C17: PEMS heavy test | D17: kWh/100km | G17: ='LIMITS Efficiency'!$E$13 -> 30 | H17: ='LIMITS Efficiency'!$F$13 -> 90 | I17: 0 | K17: PEMS heavy test | L17: l/100km | M17: =IF(OR(Petrol,Diesel),MAX(RESULTS!$Q$16,RESULTS!$Q$38),0) -> 0 | N17: PEMS heavy test | O17: kWh/100km | P17: =IF(Electric,MAX(RESULTS!R16,RESULTS!R38),0) -> 0 | Q17: PEMS heavy test | R17: kg/100km | S17: =IF(OR(CNG_Mono,CNG_Dual,Hydrogen),MAX(RESULTS!U16,RESULTS!U38),0) -> 0
C18: PEMS 8 minutes | D18: kWh/100km | G18: ='LIMITS Efficiency'!$E$13 -> 30 | H18: ='LIMITS Efficiency'!$F$13 -> 90 | I18: 0 | K18: PEMS 8 km | L18: l/100km | M18: =IF(OR(Petrol,Diesel),MAX(RESULTS!$Q$13,RESULTS!$Q$35),0) -> 0 | N18: PEMS 8 km | O18: kWh/100km | P18: =IF(Electric,MAX(RESULTS!R13,RESULTS!R35),0) -> 0 | Q18: PEMS 8 km | R18: kg/100km | S18: =IF(OR(CNG_Mono,CNG_Dual,Hydrogen),MAX(RESULTS!U13,RESULTS!U35),0) -> 0
B19: total | F19: =(SUM(F10:F16)) -> 40 | I19: =SUM(I10:I16) -> 40 | K19: Lab test Average | L19: l/100km | M19: =AVERAGE(M$10,M$12,M$15) -> 0 | N19: Lab test Average | O19: kWh/100km | P19: =AVERAGE(P$10,P$12,P$15) -> 0 | Q19: Lab test Average | R19: kg/100km | S19: =AVERAGE(S$10,S$12,S$15) -> 0
K20: Lab test Worst Case | L20: l/100km | M20: =MAX(M$10:M$12,M$15) -> 0 | N20: Lab test Worst Case | O20: kWh/100km | P20: =MAX(P$10:P$12,P$15) -> 0 | Q20: Lab test Worst Case | R20: kg/100km | S20: =MAX(S$10:S$12,S$15) -> 0
B21: 2.2 | C21: Driving Range (lab test average) | K21: 2.2.1 | N21: 2.2.2 | Q21: 2.2.3
C22: max points | D22: =I23 -> 0 | K22: Driving Range (ICE liq. fuel) | N22: Driving Range (Electr. mode) | Q22: Driving Range (ICE, CNG, Hydrogen fuel cell)
C23: PHEV | D23: km | E23: =IF(AND(P34>0,M34>0),P34+M34,0) -> 0 | F23: =IF(E23>=H23,I23,IF(E23<=G23,0,(E23-G23)/(H23-G23)*I23)) -> 0 | G23: 50 | H23: ='LIMITS Efficiency'!D32 -> 100 | I23: 0 | K23: WLTC+ cold (14 degr C) | L23: km | M23: =IF(OR(Petrol,Diesel),IF(M10>0,100*SPECS!$B$10/M10,0),0) -> 0 | N23: WLTC+ cold (14 degr C) | O23: km | P23: =IF(Electric,IF(P10>0,100*SPECS!$B$12/P10,0),0) -> 0 | Q23: WLTC cold (14 degr C) | R23: km | S23: =IF(OR(CNG_Mono,CNG_Dual,Hydrogen),IF(S10>0,100*SPECS!$B$11/S10,0),0) -> 0
C24: BEV | D24: km | E24: =IF(AND(M34=0,P34>0),P34,0) -> 0 | F24: =IF(E24>=H24,I24,IF(E24<=G24,0,(E24-G24)/(H24-G24)*I24)) -> 0 | G24: 275 | H24: 550 | I24: =$I$23 -> 0 | K24: WLTC+ cold (-7 degr C) | L24: km | M24: =IF(OR(Petrol,Diesel),IF(M11>0,100*SPECS!$B$10/M11,0),0) -> 0 | N24: WLTC+ cold (-7 degr C) | O24: km | P24: =IF(Electric,IF(P11>0,100*SPECS!$B$12/P11,0),0) -> 0 | Q24: WLTC cold (-7 degr C) | R24: km | S24: =IF(OR(CNG_Mono,CNG_Dual,Hydrogen),IF(S11>0,100*SPECS!$B$11/S11,0),0) -> 0
C25: CNG | D25: km | E25: =IF(P34>0,0,S34) -> 0 | F25: =IF(E25>=H25,$I$23,IF(E25<=G25,0,(E25-G25)/(H25-G25)*I25)) -> 0 | G25: 500 | H25: 1000 | I25: =$I$23 -> 0 | K25: WLTC+ warm engine | L25: km | M25: =IF(OR(Petrol,Diesel),IF(M12>0,100*SPECS!$B$10/M12,0),0) -> 0 | N25: WLTC+ warm engine | O25: km | P25: =IF(Electric,IF(P12>0,100*SPECS!$B$12/P12,0),0) -> 0 | Q25: WLTC-warm | R25: km | S25: =IF(OR(CNG_Mono,CNG_Dual,Hydrogen),IF(S12>0,100*SPECS!$B$11/S12,0),0) -> 0
C26: ICE | D26: km | E26: =IF(P34>0,0,M34) -> 0 | F26: 0 | G26: 500 | H26: 1000 | I26: 0 | K26: BAB130 Motorway | L26: km | M26: =IF(OR(Petrol,Diesel),IF(M13>0,100*SPECS!$B$10/M13,0),0) -> 0 | N26: BAB130 Motorway | O26: km | P26: =IF(Electric,IF(P15>0,100*SPECS!$B$12/P15,0),0) -> 0 | Q26: BAB130 Motorway | R26: km | S26: =IF(OR(CNG_Mono,CNG_Dual,Hydrogen),IF(S15>0,100*SPECS!$B$11/S15,0),0) -> 0
K27: PEMS+ cold engine1 | L27: km | M27: =IF(OR(Petrol,Diesel),IF(M14>0,100*SPECS!$B$10/M14,0),0) -> 0 | N27: PEMS+ cold engine1 | O27: km | P27: =IF(Electric,IF(P13>0,100*SPECS!$B$12/P13,0),0) -> 0 | Q27: PEMS+ cold engine1 | R27: km | S27: =IF(OR(CNG_Mono,CNG_Dual,Hydrogen),IF(S13>0,100*SPECS!$B$11/S13,0),0) -> 0
K28: PEMS+ cold engine2 | L28: km | M28: =IF(OR(Petrol,Diesel),IF(M15>0,100*SPECS!$B$10/M15,0),0) -> 0 | N28: PEMS+ cold engine2 | O28: km | P28: =IF(Electric,IF(P14>0,100*SPECS!$B$12/P14,0),0) -> 0 | Q28: PEMS+ cold engine2 | R28: km | S28: =IF(OR(CNG_Mono,CNG_Dual,Hydrogen),IF(S14>0,100*SPECS!$B$11/S14,0),0) -> 0
K29: PEMS light test | L29: km | M29: =IF(OR(Petrol,Diesel),IF(M16>0,100*SPECS!$B$10/M16,0),0) -> 0 | N29: PEMS light test | O29: km | P29: =IF(Electric,IF(P16>0,100*SPECS!$B$12/P16,0),0) -> 0 | Q29: PEMS light test | R29: km | S29: =IF(OR(CNG_Mono,CNG_Dual,Hydrogen),IF(S16>0,100*SPECS!$B$11/S16,0),0) -> 0
K30: PEMS heavy test | L30: km | M30: =IF(OR(Petrol,Diesel),IF(M17>0,100*SPECS!$B$10/M17,0),0) -> 0 | N30: PEMS heavy test | O30: km | P30: =IF(Electric,IF(P17>0,100*SPECS!$B$12/P17,0),0) -> 0 | Q30: PEMS heavy test | R30: km | S30: =IF(OR(CNG_Mono,CNG_Dual,Hydrogen),IF(S17>0,100*SPECS!$B$11/S17,0),0) -> 0
K31: PEMS 8 km | L31: km | M31: =IF(OR(Petrol,Diesel),IF(M18>0,100*SPECS!$B$10/M18,0),0) -> 0 | N31: PEMS 8 km | O31: km | P31: =IF(Electric,IF(P18>0,100*SPECS!$B$12/P18,0),0) -> 0 | Q31: PEMS 8 km | R31: km | S31: =IF(OR(CNG_Mono,CNG_Dual,Hydrogen),IF(S18>0,100*SPECS!$B$11/S18,0),0) -> 0
B32: total | F32: =SUM(F23:F24) -> 0 | K32: PEMS Average | L32: km | M32: =AVERAGE(M27:M31) -> 0 | N32: PEMS Average | O32: km | P32: =AVERAGE(P27:P31) -> 0 | Q32: PEMS Average | R32: km | S32: =AVERAGE(S27:S31) -> 0
K33: PEMS Worst Case | L33: km | M33: =MIN(M27:M31) -> 0 | N33: PEMS Worst Case | O33: km | P33: =MIN(P27:P31) -> 0 | Q33: PEMS Worst Case | R33: km | S33: =MIN(S27:S31) -> 0
K34: Lab test Average | L34: km | M34: =AVERAGE(M23,M25,M26) -> 0 | N34: Lab test Average | O34: km | P34: =AVERAGE(P23,P25,P26) -> 0 | Q34: Lab test Average | R34: km | S34: =AVERAGE(S23,S25,S26) -> 0
B35: 2.3 | C35: Driving Resistance | K35: Lab test Worst Case | L35: km | M35: =MIN(M23:M26) -> 0 | N35: Lab test Worst Case | O35: km | P35: =MIN(P23:P26) -> 0 | Q35: Lab test Worst Case | R35: km | S35: =MIN(S23:S26) -> 0
C36: max points | D36: =I40 -> 0 | I36: 0
C37: tbd | I37: 0
C38: tbd | I38: 0
C39: tbe | I39: 0
B40: total | F40: =SUM(F39:F39) -> 0 | I40: =SUM(I36:I39) -> 0
B44: SUMMARY | D44: max points | E44: scored points
B45: 2.1 | C45: Test cycle measuments
B46: =B8 -> 2.1.2 | C46: =C8 -> Energy Consumption (total) | D46: =D9 -> 40 | E46: =F19 -> 40
B47: =B21 -> 2.2 | C47: =C21 -> Driving Range (lab test average) | D47: =D22 -> 0 | E47: =F32 -> 0
B48: =B35 -> 2.3 | C48: =C35 -> Driving Resistance | D48: =D36 -> 0 | E48: =F40 -> 0
B50: TOTAL | D50: =SUM(D46:D48) -> 40 | E50: =ROUNDDOWN(SUM(E46:E48),1) -> 40
B53: TOTAL SCORE EFFICIENCY | E53: =ROUNDDOWN(10*E50/D50,1) -> 10 | F53: (0-10pts)

Sheet Greenhouse
Q1: 1
B2: 3.Greenhouse gasses | E2: Test Results | G2: Limits | I2: Max score | K2: Fall Back Fuel
E4: Value | F4: Points | G4: lower | H4: upper | K4: Value
B5: 3.1 | C5: Regulatory Tailpipe Emission Lab Tests | R5: CO2 equivalent upstream
B6: WLTC | C6: max points | D6: =SUM(I7:I9) -> 7 | R6: ICE Liquid Fuel | T6: Factor | U6: Electricity | W6: Factor | X6: ICE Gaseous Fuel | Z6: Factor
B7: (14 degr C) | C7: N2O | D7: mg/km | E7: =RESULTS!M4 -> 0 | F7: =IF(OR(Hydrogen,Electric),I7,IF(E7=0,Sliding_Scale(E7,G7,H7,I7,0,Slide_Type),IF(K7/E7>='LIMITS Efficiency'!$E$25,(1-'LIMITS Efficiency'!$E$26)*Sliding_Scale(E7,G7,H7,I7,0,Slide_Type),Sliding_Scale(E7,G7,H7,I7,0,Slide_Type)))) -> 1 | G7: ='LIMITS Greenhouse'!$E$16 -> 0 | H7: =IF(OR(Petrol,CNG_Mono,CNG_Dual),'LIMITS Greenhouse'!$D$6,IF(Diesel,'LIMITS Greenhouse'!$E$6,0)) -> 6.2 | I7: 1 | K7: =RESULTS!$M$26 -> 0 | R7: =IF(Petrol,"Petrol",IF(Diesel,"Diesel","-")) -> Petrol | T7: =IF(Petrol,'LIMITS Greenhouse'!$D$28,IF(Diesel,'LIMITS Greenhouse'!$D$29,0)) -> 0.188 | U7: =IF(Electric,"Electric","-") -> - | W7: ='LIMITS Greenhouse'!D30 -> 217.5 | X7: =IF(CNG_Mono,"CNG Monovalent",IF(CNG_Dual,"CNG Dual Fuel","-")) -> - | Z7: =IF(OR(Petrol,CNG_Mono,CNG_Dual),'LIMITS Greenhouse'!$D$31,IF(Diesel,'LIMITS Greenhouse'!$E$32,0)) -> 0.231
C8: CH4 | D8: mg/km | E8: =RESULTS!P4 -> 0 | F8: =IF(OR(Hydrogen,Electric),I8,IF(E8=0,Sliding_Scale(E8,G8,H8,I8,0,Slide_Type),IF(K8/E8>='LIMITS Efficiency'!$E$25,(1-'LIMITS Efficiency'!$E$26)*Sliding_Scale(E8,G8,H8,I8,0,Slide_Type),Sliding_Scale(E8,G8,H8,I8,0,Slide_Type)))) -> 2 | G8: ='LIMITS Greenhouse'!$E$17 -> 0 | H8: =IF(OR(Petrol,CNG_Mono,CNG_Dual),'LIMITS Greenhouse'!$D$7,IF(Diesel,'LIMITS Greenhouse'!$E$7,0)) -> 32 | I8: 2 | K8: =RESULTS!$P$26 -> 0 | R8: WLTC cold (14 degr C) | S8: g/km | T8: =(IF(OR(Petrol,Diesel),MAX(RESULTS!$E4,RESULTS!$E26,0),0)*T$7) -> 0 | U8: WLTC cold (14 degr C) | V8: g/km | W8: =(IF(Electric,MAX(RESULTS!R4,RESULTS!R26),0)/100)*$W$7 -> 0 | X8: WLTC cold (14 degr C) | Y8: g/km | Z8: =(IF(OR(CNG_Mono,CNG_Dual),MAX(RESULTS!E4,RESULTS!E26),0)*$Z$7) -> 0
C9: Total CO2 | D9: g/km | E9: =E10+E11 -> 0 | F9: =IF(OR(Hydrogen,Electric),I9,IF(E9=0,Sliding_Scale(E9,G9,H9,I9,0,Slide_Type),IF(K9/E9>='LIMITS Efficiency'!$E$25,(1-'LIMITS Efficiency'!$E$26)*Sliding_Scale(E9,G9,H9,I9,0,Slide_Type),Sliding_Scale(E9,G9,H9,I9,0,Slide_Type)))) -> 4 | G9: ='LIMITS Greenhouse'!$E$18 -> 0 | H9: =IF(OR(Petrol,CNG_Mono,CNG_Dual),'LIMITS Greenhouse'!$D$8,IF(Diesel,'LIMITS Greenhouse'!$E$8,0)) -> 175 | I9: 4 | K9: 0 | R9: WLTC cold (-7 degr C) | S9: g/km | T9: =(IF(OR(Petrol,Diesel),MAX(RESULTS!$E7,RESULTS!$E29,0))*T$7) -> 0 | U9: WLTC cold (-7 degr C) | V9: g/km | W9: =(IF(Electric,MAX(RESULTS!R7,RESULTS!R29),0)/100)*$W$7 -> 0 | X9: WLTC cold (-7 degr C) | Y9: g/km | Z9: =(IF(OR(CNG_Mono,CNG_Dual),MAX(RESULTS!E7,RESULTS!E29),0)*$Z$7) -> 0
C10: CO2 tailpipe | D10: g/km | E10: =(IF(OR(Petrol,Diesel,CNG_Mono,CNG_Dual),MAX(RESULTS!F4,RESULTS!F26,0),0)) -> 0 | R10: WLTC-warm | S10: g/km | T10: =(IF(OR(Petrol,Diesel),MAX(RESULTS!$E8,RESULTS!$E30,0))*T$7) -> 0 | U10: WLTC-warm | V10: g/km | W10: =(IF(Electric,MAX(RESULTS!R8,RESULTS!R30),0)/100)*$W$7 -> 0 | X10: WLTC-warm | Y10: g/km | Z10: =(IF(OR(CNG_Mono,CNG_Dual),MAX(RESULTS!E8,RESULTS!E30),0)*$Z$7) -> 0
C11: CO2-eq upstream | D11: g/km | R11: PEMS+ cold engine1 | S11: g/km | T11: =(IF(OR(Petrol,Diesel),MAX(RESULTS!$E11,RESULTS!$E33,0))*T$7) -> 0 | U11: PEMS+ cold engine1 | V11: g/km | W11: =(IF(Electric,MAX(RESULTS!R11,RESULTS!R33),0)/100)*$W$7 -> 0 | X11: PEMS+ cold engine1 | Y11: g/km | Z11: =(IF(OR(CNG_Mono,CNG_Dual),MAX(RESULTS!E11,RESULTS!E33),0)*$Z$7) -> 0
B12: total | F12: =MAX(SUM(F7:F9),0) -> 7 | R12: PEMS+ cold engine2 | S12: g/km | T12: =(IF(OR(Petrol,Diesel),MAX(RESULTS!$E12,RESULTS!$E34,0))*T$7) -> 0 | U12: PEMS+ cold engine2 | V12: g/km | W12: =(IF(Electric,MAX(RESULTS!R12,RESULTS!R34),0)/100)*$W$7 -> 0 | X12: PEMS+ cold engine2 | Y12: g/km | Z12: =(IF(OR(CNG_Mono,CNG_Dual),MAX(RESULTS!E12,RESULTS!E34),0)*$Z$7) -> 0
B13: WLTC-CAT | C13: max points | D13: =SUM(I14:I16) -> 7 | R13: Bab130 | S13: g/km | T13: =(IF(OR(Petrol,Diesel),MAX(RESULTS!$E10,RESULTS!$E34,0))*T$7) -> 0 | U13: Bab130 | V13: g/km | W13: =(IF(Electric,MAX(RESULTS!R10,RESULTS!R34),0)/100)*$W$7 -> 0 | X13: Bab130 | Y13: g/km | Z13: =(IF(OR(CNG_Mono,CNG_Dual),MAX(RESULTS!E10,RESULTS!E32),0)*$Z$7) -> 0
B14: (-7 degr C) | C14: N2O | D14: mg/km | E14: =RESULTS!$M$7 -> 0 | F14: =IF(OR(Hydrogen,Electric),I14,IF(E14=0,Sliding_Scale(E14,G14,H14,I14,0,Slide_Type),IF(K14/E14>='LIMITS Efficiency'!$E$25,(1-'LIMITS Efficiency'!$E$26)*Sliding_Scale(E14,G14,H14,I14,0,Slide_Type),Sliding_Scale(E14,G14,H14,I14,0,Slide_Type)))) -> 1 | G14: ='LIMITS Greenhouse'!$E$16 -> 0 | H14: =IF(OR(Petrol,CNG_Mono,CNG_Dual),'LIMITS Greenhouse'!$N$6,IF(Diesel,'LIMITS Greenhouse'!$O$6,0)) -> 9.92 | I14: 1 | R14: PEMS light test | S14: g/km | T14: =(IF(OR(Petrol,Diesel),MAX(RESULTS!$E11,RESULTS!$E37,0))*T$7) -> 0 | U14: PEMS light test | V14: g/km | W14: =(IF(Electric,MAX(RESULTS!R15,RESULTS!R37),0)/100)*$W$7 -> 0 | X14: PEMS light test | Y14: g/km | Z14: =(IF(OR(CNG_Mono,CNG_Dual),MAX(RESULTS!E11,RESULTS!E37),0)*$Z$7) -> 0
C15: CH4 | D15: mg/km | E15: =RESULTS!$P$7 -> 0 | F15: =IF(OR(Hydrogen,Electric),I15,IF(E15=0,Sliding_Scale(E15,G15,H15,I15,0,Slide_Type),IF(K15/E15>='LIMITS Efficiency'!$E$25,(1-'LIMITS Efficiency'!$E$26)*Sliding_Scale(E15,G15,H15,I15,0,Slide_Type),Sliding_Scale(E15,G15,H15,I15,0,Slide_Type)))) -> 2 | G15: ='LIMITS Greenhouse'!$E$17 -> 0 | H15: =IF(OR(Petrol,CNG_Mono,CNG_Dual),'LIMITS Greenhouse'!$N$7,IF(Diesel,'LIMITS Greenhouse'!$O$7,0)) -> 51.2 | I15: 2 | R15: PEMS heavy test | S15: g/km | T15: =(IF(OR(Petrol,Diesel),MAX(RESULTS!$E16,RESULTS!$E38,0))*T$7) -> 0 | U15: PEMS heavy test | V15: g/km | W15: =(IF(OR(CNG_Mono,CNG_Dual),MAX(RESULTS!M16,RESULTS!M38)/100,0)*$Z$7) -> 0 | X15: PEMS heavy test | Y15: g/km | Z15: =(IF(OR(CNG_Mono,CNG_Dual),MAX(RESULTS!E16,RESULTS!E38),0)*$Z$7) -> 0
C16: Total CO2 | D16: g/km | E16: =E17+E18 -> 0 | F16: =IF(OR(Hydrogen,Electric),I16,IF(E17=0,Sliding_Scale(E17,G16,H16,I16,0,Slide_Type),IF(K16/E17>='LIMITS Efficiency'!$E$25,(1-'LIMITS Efficiency'!$E$26)*Sliding_Scale(E17,G16,H16,I16,0,Slide_Type),Sliding_Scale(E17,G16,H16,I16,0,Slide_Type)))) -> 4 | G16: ='LIMITS Greenhouse'!$E$18 -> 0 | H16: =IF(OR(Petrol,CNG_Mono,CNG_Dual),'LIMITS Greenhouse'!$N$8,IF(Diesel,'LIMITS Greenhouse'!$O$8,0)) -> 175 | I16: 4 | R16: PEMS 8 minutes | S16: g/km | T16: =(IF(OR(Petrol,Diesel),MAX(RESULTS!$E13,RESULTS!$E35,0))*T$7) -> 0 | U16: PEMS 8 minutes | V16: g/km | W16: =(IF(OR(CNG_Mono,CNG_Dual),MAX(RESULTS!M13,RESULTS!M35)/100,0)*$Z$7) -> 0 | X16: PEMS 8 minutes | Y16: g/km | Z16: =(IF(OR(CNG_Mono,CNG_Dual),MAX(RESULTS!E13,RESULTS!E35),0)*$Z$7) -> 0
C17: CO2 tailpipe | D17: g/km | E17: =(IF(OR(Petrol,Diesel,CNG_Mono,CNG_Dual),MAX(RESULTS!$F7,RESULTS!$F29,0),0)) -> 0
C18: CO2-eq upstream | D18: g/km
B19: total | F19: =MAX(SUM(F14:F16),0) -> 7
B20: WLTC-warm | C20: max points | D20: =SUM(I21:I23) -> 7
B21: (warm) | C21: N2O | D21: mg/km | E21: =RESULTS!$M$8 -> 0 | F21: =IF(OR(Hydrogen,Electric),I21,IF(E21=0,Sliding_Scale(E21,G21,H21,I21,0,Slide_Type),IF(K21/E21>='LIMITS Efficiency'!$E$25,(1-'LIMITS Efficiency'!$E$26)*Sliding_Scale(E21,G21,H21,I21,0,Slide_Type),Sliding_Scale(E21,G21,H21,I21,0,Slide_Type)))) -> 1 | G21: ='LIMITS Greenhouse'!$E$16 -> 0 | H21: =IF(OR(Petrol,CNG_Mono,CNG_Dual),'LIMITS Greenhouse'!$D$6,IF(Diesel,'LIMITS Greenhouse'!$E$6,0)) -> 6.2 | I21: 1
C22: CH4 | D22: mg/km | E22: =RESULTS!$P$8 -> 0 | F22: =IF(OR(Hydrogen,Electric),I22,IF(E22=0,Sliding_Scale(E22,G22,H22,I22,0,Slide_Type),IF(K22/E22>='LIMITS Efficiency'!$E$25,(1-'LIMITS Efficiency'!$E$26)*Sliding_Scale(E22,G22,H22,I22,0,Slide_Type),Sliding_Scale(E22,G22,H22,I22,0,Slide_Type)))) -> 2 | G22: ='LIMITS Greenhouse'!$E$17 -> 0 | H22: =IF(OR(Petrol,CNG_Mono,CNG_Dual),'LIMITS Greenhouse'!$D$7,IF(Diesel,'LIMITS Greenhouse'!$E$7,0)) -> 32 | I22: 2
C23: Total CO2 | D23: g/km | E23: =E24+E25 -> 0 | F23: =IF(OR(Hydrogen,Electric),I23,IF(E23=0,Sliding_Scale(E23,G23,H23,I23,0,Slide_Type),IF(K23/E23>='LIMITS Efficiency'!$E$25,(1-'LIMITS Efficiency'!$E$26)*Sliding_Scale(E23,G23,H23,I23,0,Slide_Type),Sliding_Scale(E23,G23,H23,I23,0,Slide_Type)))) -> 4 | G23: ='LIMITS Greenhouse'!$E$18 -> 0 | H23: =IF(OR(Petrol,CNG_Mono,CNG_Dual),'LIMITS Greenhouse'!$D$8,IF(Diesel,'LIMITS Greenhouse'!$E$8,0)) -> 175 | I23: 4
C24: CO2 tailpipe | D24: g/km | E24: =(IF(OR(Petrol,Diesel,CNG_Mono,CNG_Dual),MAX(RESULTS!$F8,RESULTS!$F30,0),0)) -> 0
C25: CO2-eq upstream | D25: g/km
B26: total | F26: =MAX(SUM(F21:F23),0) -> 7
B27: 3.2 | C27: Regulatory performance PEMS+
B28: PEMS+ cold engine 1 | C28: max points | D28: =SUM(I29:I31) -> 0
C29: N2O | D29: mg/km | E29: =RESULTS!$M$11 -> 0 | F29: =IF(OR(Hydrogen,Electric),I29,IF(E29=0,Sliding_Scale(E29,G29,H29,I29,0,Slide_Type),IF(K29/E29>='LIMITS Efficiency'!$E$25,(1-'LIMITS Efficiency'!$E$26)*Sliding_Scale(E29,G29,H29,I29,0,Slide_Type),Sliding_Scale(E29,G29,H29,I29,0,Slide_Type)))) -> 0 | G29: ='LIMITS Greenhouse'!$E$16 -> 0 | H29: =IF(OR(Petrol,CNG_Mono,CNG_Dual),'LIMITS Greenhouse'!$I$6,IF(Diesel,'LIMITS Greenhouse'!$J$6,0)) -> 9.3 | I29: 0 | K29: =RESULTS!$M$33 -> 0
C30: CH4 | D30: mg/km | E30: =RESULTS!$P11 -> 0 | F30: =IF(OR(Hydrogen,Electric),I30,IF(E30=0,Sliding_Scale(E30,G30,H30,I30,0,Slide_Type),IF(K30/E30>='LIMITS Efficiency'!$E$25,(1-'LIMITS Efficiency'!$E$26)*Sliding_Scale(E30,G30,H30,I30,0,Slide_Type),Sliding_Scale(E30,G30,H30,I30,0,Slide_Type)))) -> 0 | G30: ='LIMITS Greenhouse'!$E$17 -> 0 | H30: =IF(OR(Petrol,CNG_Mono,CNG_Dual),'LIMITS Greenhouse'!$I$7,IF(Diesel,'LIMITS Greenhouse'!$J$7,0)) -> 48 | I30: 0 | K30: =RESULTS!$P$33 -> 0
C31: Total CO2 | D31: g/km | E31: =E32+E33 -> 0 | F31: =IF(OR(Hydrogen,Electric),I31,IF(E31=0,Sliding_Scale(E31,G31,H31,I31,0,Slide_Type),IF(K31/E31>='LIMITS Efficiency'!$E$25,(1-'LIMITS Efficiency'!$E$26)*Sliding_Scale(E31,G31,H31,I31,0,Slide_Type),Sliding_Scale(E31,G31,H31,I31,0,Slide_Type)))) -> 0 | G31: ='LIMITS Greenhouse'!$E$18 -> 0 | H31: =IF(OR(Petrol,CNG_Mono,CNG_Dual),'LIMITS Greenhouse'!$I$8,IF(Diesel,'LIMITS Greenhouse'!$J$8,0)) -> 262.5 | I31: 0 | K31: =RESULTS!$E$33+$S$30 -> 0
C32: CO2 tailpipe | D32: g/km | E32: =(IF(OR(Petrol,Diesel,CNG_Mono,CNG_Dual),MAX(RESULTS!$F11,RESULTS!$F33,0),0)) -> 0
C33: CO2-eq upstream | D33: g/km
F34: =IF(OR(E29:E31>'LIMITS Greenhouse'!$K$6:$K$8,K29:K31>'LIMITS Greenhouse'!$K$6:$K$8),0,MAX(SUM(F29:F31),0)) -> 0
B35: PEMS+ cold engine 2 | C35: max points | D35: =SUM(I36:I38) -> 0
C36: N2O | D36: mg/km | E36: =RESULTS!$M$12 -> 0 | F36: =IF(OR(Hydrogen,Electric),I36,IF(E36=0,Sliding_Scale(E36,G36,H36,I36,0,Slide_Type),IF(K36/E36>='LIMITS Efficiency'!$E$25,(1-'LIMITS Efficiency'!$E$26)*Sliding_Scale(E36,G36,H36,I36,0,Slide_Type),Sliding_Scale(E36,G36,H36,I36,0,Slide_Type)))) -> 0 | G36: ='LIMITS Greenhouse'!$E$16 -> 0 | H36: =IF(OR(Petrol,CNG_Mono,CNG_Dual),'LIMITS Greenhouse'!$I$6,IF(Diesel,'LIMITS Greenhouse'!$J$6,0)) -> 9.3 | I36: 0
C37: CH4 | D37: mg/km | E37: =RESULTS!$P12 -> 0 | F37: =IF(OR(Hydrogen,Electric),I37,IF(E37=0,Sliding_Scale(E37,G37,H37,I37,0,Slide_Type),IF(K37/E37>='LIMITS Efficiency'!$E$25,(1-'LIMITS Efficiency'!$E$26)*Sliding_Scale(E37,G37,H37,I37,0,Slide_Type),Sliding_Scale(E37,G37,H37,I37,0,Slide_Type)))) -> 0 | G37: ='LIMITS Greenhouse'!$E$17 -> 0 | H37: =IF(OR(Petrol,CNG_Mono,CNG_Dual),'LIMITS Greenhouse'!$I$7,IF(Diesel,'LIMITS Greenhouse'!$J$7,0)) -> 48 | I37: 0
C38: Total CO2 | D38: g/km | E38: =E39+E40 -> 0 | F38: =IF(OR(Hydrogen,Electric),I38,IF(E38=0,Sliding_Scale(E38,G38,H38,I38,0,Slide_Type),IF(K38/E38>='LIMITS Efficiency'!$E$25,(1-'LIMITS Efficiency'!$E$26)*Sliding_Scale(E38,G38,H38,I38,0,Slide_Type),Sliding_Scale(E38,G38,H38,I38,0,Slide_Type)))) -> 0 | G38: ='LIMITS Greenhouse'!$E$18 -> 0 | H38: =IF(OR(Petrol,CNG_Mono,CNG_Dual),'LIMITS Greenhouse'!$I$8,IF(Diesel,'LIMITS Greenhouse'!$J$8,0)) -> 262.5 | I38: 0
C39: CO2 tailpipe | D39: g/km | E39: =(IF(OR(Petrol,Diesel,CNG_Mono,CNG_Dual),MAX(RESULTS!$F12,RESULTS!$F34,0),0)) -> 0
C40: CO2-eq upstream | D40: g/km
B41: Regulatory performance PEMS+ | F41: =IF(OR(E36:E38>'LIMITS Greenhouse'!$K$6:$K$8,K36:K38>'LIMITS Greenhouse'!$K$6:$K$8),0,MAX(SUM(F36:F38),0)) -> 0
B43: 3.3 | C43: Robustness
B44: BAB130 | C44: max points | D44: =SUM(I45:I47) -> 7
C45: N2O | D45: mg/km | E45: =RESULTS!$M$10 -> 0 | F45: =IF(OR(Hydrogen,Electric),I45,IF(E45=0,Sliding_Scale(E45,G45,H45,I45,0,Slide_Type),IF(K45/E45>='LIMITS Efficiency'!$E$25,(1-'LIMITS Efficiency'!$E$26)*Sliding_Scale(E45,G45,H45,I45,0,Slide_Type),Sliding_Scale(E45,G45,H45,I45,0,Slide_Type)))) -> 1 | G45: ='LIMITS Greenhouse'!$E$16 -> 0 | H45: =IF(OR(Petrol,CNG_Mono,CNG_Dual),'LIMITS Greenhouse'!$D$6,IF(Diesel,'LIMITS Greenhouse'!$E$6,0)) -> 6.2 | I45: 1 | K45: =RESULTS!$M$32 -> 0
C46: CH4 | D46: mg/km | E46: =RESULTS!$P$10 -> 0 | F46: =IF(OR(Hydrogen,Electric),I46,IF(E46=0,Sliding_Scale(E46,G46,H46,I46,0,Slide_Type),IF(K46/E46>='LIMITS Efficiency'!$E$25,(1-'LIMITS Efficiency'!$E$26)*Sliding_Scale(E46,G46,H46,I46,0,Slide_Type),Sliding_Scale(E46,G46,H46,I46,0,Slide_Type)))) -> 2 | G46: ='LIMITS Greenhouse'!$E$17 -> 0 | H46: =IF(OR(Petrol,CNG_Mono,CNG_Dual),'LIMITS Greenhouse'!$D$7,IF(Diesel,'LIMITS Greenhouse'!$E$7,0)) -> 32 | I46: 2 | K46: =RESULTS!$P$32 -> 0
C47: Total CO2 | D47: g/km | E47: =E48+E49 -> 0 | F47: =IF(OR(Hydrogen,Electric),I47,IF(E47=0,Sliding_Scale(E47,G47,H47,I47,0,Slide_Type),IF(K47/E47>='LIMITS Efficiency'!$E$25,(1-'LIMITS Efficiency'!$E$26)*Sliding_Scale(E47,G47,H47,I47,0,Slide_Type),Sliding_Scale(E47,G47,H47,I47,0,Slide_Type)))) -> 4 | G47: ='LIMITS Greenhouse'!$E$18 -> 0 | H47: =IF(OR(Petrol,CNG_Mono,CNG_Dual),'LIMITS Greenhouse'!$D$8,IF(Diesel,'LIMITS Greenhouse'!$E$8,0)) -> 175 | I47: 4 | K47: =RESULTS!$E$32+$S$29 -> 0
C48: CO2 tailpipe | D48: g/km | E48: =(IF(OR(Petrol,Diesel,CNG_Mono,CNG_Dual),MAX(RESULTS!$F10,RESULTS!$F32,0),0)) -> 0
C49: CO2-eq upstream | D49: g/km
F50: =MAX(SUM(F45:F47),0) -> 7
B51: PEMS light test | C51: max points | D51: =SUM(I52:I54) -> 0
C52: N2O | D52: mg/km | E52: =RESULTS!$M$15 -> 0 | F52: =IF(OR(Hydrogen,Electric),I52,IF(E52=0,Sliding_Scale(E52,G52,H52,I52,0,Slide_Type),IF(K52/E52>='LIMITS Efficiency'!$E$25,(1-'LIMITS Efficiency'!$E$26)*Sliding_Scale(E52,G52,H52,I52,0,Slide_Type),Sliding_Scale(E52,G52,H52,I52,0,Slide_Type)))) -> 0 | G52: ='LIMITS Greenhouse'!$E$16 -> 0 | H52: =IF(OR(Petrol,CNG_Mono,CNG_Dual),'LIMITS Greenhouse'!$I$6,IF(Diesel,'LIMITS Greenhouse'!$J$6,0)) -> 9.3 | I52: 0
C53: CH4 | D53: mg/km | E53: =RESULTS!$P$15 -> 0 | F53: =IF(OR(Hydrogen,Electric),I53,IF(E53=0,Sliding_Scale(E53,G53,H53,I53,0,Slide_Type),IF(K53/E53>='LIMITS Efficiency'!$E$25,(1-'LIMITS Efficiency'!$E$26)*Sliding_Scale(E53,G53,H53,I53,0,Slide_Type),Sliding_Scale(E53,G53,H53,I53,0,Slide_Type)))) -> 0 | G53: ='LIMITS Greenhouse'!$E$17 -> 0 | H53: =IF(OR(Petrol,CNG_Mono,CNG_Dual),'LIMITS Greenhouse'!$I$7,IF(Diesel,'LIMITS Greenhouse'!$J$7,0)) -> 48 | I53: 0
C54: Total CO2 | D54: g/km | E54: =E55+E56 -> 0 | F54: =IF(OR(Hydrogen,Electric),I54,IF(E54=0,Sliding_Scale(E54,G54,H54,I54,0,Slide_Type),IF(K54/E54>='LIMITS Efficiency'!$E$25,(1-'LIMITS Efficiency'!$E$26)*Sliding_Scale(E54,G54,H54,I54,0,Slide_Type),Sliding_Scale(E54,G54,H54,I54,0,Slide_Type)))) -> 0 | G54: ='LIMITS Greenhouse'!$E$18 -> 0 | H54: =IF(OR(Petrol,CNG_Mono,CNG_Dual),'LIMITS Greenhouse'!$I$8,IF(Diesel,'LIMITS Greenhouse'!$J$8,0)) -> 262.5 | I54: 0
C55: CO2 tailpipe | D55: g/km | E55: =(IF(OR(Petrol,Diesel,CNG_Mono,CNG_Dual),MAX(RESULTS!$F15,RESULTS!$F37,0),0)) -> 0
C56: CO2-eq upstream | D56: g/km
F57: =IF(OR(E52:E54>'LIMITS Greenhouse'!$K$6:$K$8,K52:K54>'LIMITS Greenhouse'!$K$6:$K$8),0,MAX(SUM(F52:F54),0)) -> 0
B58: PEMS heavy test | C58: max points | D58: =SUM(I59:I63) -> 0
C59: N2O | D59: mg/km | E59: =RESULTS!$M$16 -> 0 | F59: =IF(OR(Hydrogen,Electric),I59,IF(E59=0,Sliding_Scale(E59,G59,H59,I59,0,Slide_Type),IF(K59/E59>='LIMITS Efficiency'!$E$25,(1-'LIMITS Efficiency'!$E$26)*Sliding_Scale(E59,G59,H59,I59,0,Slide_Type),Sliding_Scale(E59,G59,H59,I59,0,Slide_Type)))) -> 0 | G59: ='LIMITS Greenhouse'!$E$16 -> 0 | H59: =IF(OR(Petrol,CNG_Mono,CNG_Dual),'LIMITS Greenhouse'!$I$6,IF(Diesel,'LIMITS Greenhouse'!$J$6,0)) -> 9.3 | I59: 0
C60: CH4 | D60: mg/km | E60: =RESULTS!$P$16 -> 0 | F60: =IF(OR(Hydrogen,Electric),I60,IF(E60=0,Sliding_Scale(E60,G60,H60,I60,0,Slide_Type),IF(K60/E60>='LIMITS Efficiency'!$E$25,(1-'LIMITS Efficiency'!$E$26)*Sliding_Scale(E60,G60,H60,I60,0,Slide_Type),Sliding_Scale(E60,G60,H60,I60,0,Slide_Type)))) -> 0 | G60: ='LIMITS Greenhouse'!$E$17 -> 0 | H60: =IF(OR(Petrol,CNG_Mono,CNG_Dual),'LIMITS Greenhouse'!$I$7,IF(Diesel,'LIMITS Greenhouse'!$J$7,0)) -> 48 | I60: 0
C61: CO2 | D61: g/km | E61: =E62+E63 -> 0 | F61: =IF(OR(Hydrogen,Electric),I63,IF(E63=0,Sliding_Scale(E63,G61,H61,I63,0,Slide_Type),IF(K63/E63>='LIMITS Efficiency'!$E$25,(1-'LIMITS Efficiency'!$E$26)*Sliding_Scale(E63,G61,H61,I63,0,Slide_Type),Sliding_Scale(E63,G61,H61,I63,0,Slide_Type)))) -> 0 | G61: ='LIMITS Greenhouse'!$E$18 -> 0 | H61: =IF(OR(Petrol,CNG_Mono,CNG_Dual),'LIMITS Greenhouse'!$I$8,IF(Diesel,'LIMITS Greenhouse'!$J$8,0)) -> 262.5 | I61: 0
C62: CO2 tailpipe | D62: g/km | E62: =(IF(OR(Petrol,Diesel,CNG_Mono,CNG_Dual),MAX(RESULTS!$F16,RESULTS!$F38,0),0)) -> 0
C63: CO2-eq upstream | D63: g/km
F64: =IF(OR(E59:E61>'LIMITS Greenhouse'!$K$6:$K$8,K59:K61>'LIMITS Greenhouse'!$K$6:$K$8),0,MAX(SUM(F59:F61),0)) -> 0
B65: PEMS 8 minutes | C65: max points | D65: =SUM(I66:I70) -> 0
C66: N2O | D66: mg/km | E66: =RESULTS!$M$13 -> 0 | F66: =IF(OR(Hydrogen,Electric),I66,IF(E66=0,Sliding_Scale(E66,G66,H66,I66,0,Slide_Type),IF(K66/E66>='LIMITS Efficiency'!$E$25,(1-'LIMITS Efficiency'!$E$26)*Sliding_Scale(E66,G66,H66,I66,0,Slide_Type),Sliding_Scale(E66,G66,H66,I66,0,Slide_Type)))) -> 0 | G66: ='LIMITS Greenhouse'!$E$16 -> 0 | H66: =IF(OR(Petrol,CNG_Mono,CNG_Dual),'LIMITS Greenhouse'!$I$6,IF(Diesel,'LIMITS Greenhouse'!$J$6,0)) -> 9.3 | I66: 0
C67: CH4 | D67: mg/km | E67: =RESULTS!$P$13 -> 0 | F67: =IF(OR(Hydrogen,Electric),I67,IF(E67=0,Sliding_Scale(E67,G67,H67,I67,0,Slide_Type),IF(K67/E67>='LIMITS Efficiency'!$E$25,(1-'LIMITS Efficiency'!$E$26)*Sliding_Scale(E67,G67,H67,I67,0,Slide_Type),Sliding_Scale(E67,G67,H67,I67,0,Slide_Type)))) -> 0 | G67: ='LIMITS Greenhouse'!$E$17 -> 0 | H67: =IF(OR(Petrol,CNG_Mono,CNG_Dual),'LIMITS Greenhouse'!$I$7,IF(Diesel,'LIMITS Greenhouse'!$J$7,0)) -> 48 | I67: 0
C68: CO2 | D68: g/km | E68: =E69+E70 -> 0 | F68: =IF(OR(Hydrogen,Electric),I70,IF(E70=0,Sliding_Scale(E70,G68,H68,I70,0,Slide_Type),IF(K70/E70>='LIMITS Efficiency'!$E$25,(1-'LIMITS Efficiency'!$E$26)*Sliding_Scale(E70,G68,H68,I70,0,Slide_Type),Sliding_Scale(E70,G68,H68,I70,0,Slide_Type)))) -> 0 | G68: ='LIMITS Greenhouse'!$E$18 -> 0 | H68: =IF(OR(Petrol,CNG_Mono,CNG_Dual),'LIMITS Greenhouse'!$I$8,IF(Diesel,'LIMITS Greenhouse'!$J$8,0)) -> 262.5 | I68: 0
C69: CO2 tailpipe | D69: g/km | E69: =(IF(OR(Petrol,Diesel,CNG_Mono,CNG_Dual),MAX(RESULTS!$F13,RESULTS!$F35,0),0)) -> 0
C70: CO2-eq upstream | D70: g/km
F71: =IF(OR(E66:E68>'LIMITS Greenhouse'!$K$6:$K$8,K66:K68>'LIMITS Greenhouse'!$K$6:$K$8),0,MAX(SUM(F66:F68),0)) -> 0
B78: SUMMARY | D78: MAX | F78: SCORE
B79: =B5 -> 3.1 | C79: =C5 -> Regulatory Tailpipe Emission Lab Tests | D79: =SUM(D6,D13,D20) -> 21 | F79: =ROUNDDOWN(SUM(F12,F19,F26,),1) -> 21
B80: =B27 -> 3.2 | C80: =C27 -> Regulatory performance PEMS+ | D80: =SUM(D28,D35) -> 0 | F80: =ROUNDDOWN(SUM(F34,F41),1) -> 0
B81: =B43 -> 3.3 | C81: =C43 -> Robustness | D81: =SUM(D44,D51,D58) -> 7 | F81: =ROUNDDOWN(SUM(F50,F57,F64),1) -> 7
B82: TOTAL | D82: =SUM(D79:D81) -> 28 | F82: =SUM(F79:F81) -> 28
B86: TOTAL SCORE POLLUTANTS | D86: (0-10pts) | F86: =ROUNDDOWN(10*F82/D82,1) -> 10

Sheet RESULTS
A2: DOMINANT FUEL | B2: MAIN RESULTS 1 | E2: CO2 tailpipe | F2: CO2 RCB corr. | G2: CO | H2: NOx | I2: NO | J2: NO2 | K2: PN | L2: PM | M2: N2O | N2: NH3 | O2: THC | P2: CH4 | Q2: Fuel Consumption | R2: Energy Consumption | S2: Fuel consumpt. | T2: Energy consumpt. | U2: Gas Consumption | V2: Board Comp. fuel consumpt. | W2: Board Comp. energy consumpt. | X2: Board Comp. gas consumpt. | Y2: Driving Range (ICE mode) | Z2: Driving Range (electr. mode)
E3: g/km | F3: g/km | G3: mg/km | H3: mg/km | I3: mg/km | J3: mg/km | K3: #/km | L3: mg/km | M3: mg/km | N3: mg/km | O3: mg/km | P3: mg/km | Q3: l/100km | R3: kWh/100km | S3: g/s | T3: Wh/s | U3: kg/100km | V3: L/100km | W3: kWh/100km | X3: kg/100km | Y3: km | Z3: km
B4: Laboratory Tests | C4: WLTC+ appr. | D4: WLTC+ cold engine (14 degr C) | S4: n.a. | T4: n.a.
D5: WLTC+ cold engine 2 (not rated) | S5: n.a. | T5: n.a.
D6: WLTC+ cold engine average (not rated) | S6: n.a. | T6: n.a.
D7: WLTC+ cold engine (-7 degr C) | S7: n.a. | T7: n.a.
C8: Robustness | D8: WLTC+ warm engine | S8: n.a. | T8: n.a.
D9: WLTC+ reg. warm engn. rep. (not rated) | S9: n.a. | T9: n.a.
D10: BAB130 Motorway | S10: n.a. | T10: n.a.
B11: Real-World tests | C11: Approval | D11: PEMS+ Cold Engine 1 | S11: n.a. | T11: n.a.
D12: PEMS+ Cold Engine 2 | S12: n.a. | T12: n.a.
C13: Short urban trip | D13: Short trip / cold start 1 | S13: n.a. | T13: n.a. | V13: n.a. | W13: n.a. | X13: n.a.
D14: Short trip / cold start 2 | S14: n.a. | T14: n.a. | V14: n.a. | W14: n.a. | X14: n.a.
C15: Robustness | D15: Eco / light | S15: n.a. | T15: n.a.
D16: Heavy Load | S16: n.a. | T16: n.a.
E17: g/s ↓ | F17: g/s ↓ | G17: mg/s ↓ | H17: mg/s ↓ | I17: mg/s ↓ | J17: mg/s ↓ | K17: #/s ↓ | M17: mg/s ↓ | O17: mg/s ↓
D18: Congestion MAX value
D19: Congestion AVG value | U19: n.a. | V19: n.a. | W19: n.a. | X19: n.a. | Y19: n.a. | Z19: n.a.
B20: DPF Regene-ration | E20: g/km ↓ | F20: g/km ↓ | G20: mg/km ↓ | H20: mg/km ↓ | I20: mg/km ↓ | J20: mg/km ↓ | K20: #/km ↓ | L20: mg/km ↓ | M20: mg/km ↓ | N20: mg/km ↓ | O20: mg/km ↓ | P20: mg/km ↓
C21: Insert name of test with particle filter regeneration occurance
C22: Impact of regen. compared to the non-regenerating test [%]
A24: FALL BACK FUEL | B24: MAIN RESULTS 2 | E24: CO2 tailpipe | F24: CO2 RCB corr. | G24: CO | H24: NOx | I24: NO | J24: NO2 | K24: PN | L24: PM | M24: N2O | N24: NH3 | O24: THC | P24: CH4 | Q24: Fuel Consumption | R24: Energy Consumption | S24: Fuel consumpt. | T24: Energy consumpt. | U24: Gas Consumption | V24: BC fuel consumpt. | W24: BC energy consumpt. | X24: BC gas consumpt. | Y24: Driving Range (ICE mode) | Z24: Driving Range (electr. mode)
E25: g/km | F25: g/km | G25: mg/km | H25: mg/km | I25: mg/km | J25: mg/km | K25: #/km | L25: mg/km | M25: mg/km | N25: mg/km | O25: mg/km | P25: mg/km | Q25: l/100km | R25: kWh/100km | S25: g/s | T25: Wh/s | U25: kg/100km | V25: L/100km | W25: kWh/100km | X25: kg/100km | Y25: km | Z25: km
B26: Laboratory Tests | C26: WLTC+ appr. | D26: WLTC+ cold engine (14 degr C) | S26: n.a. | T26: n.a.
D27: WLTC+ cold engine 2 (not rated) | S27: n.a. | T27: n.a.
D28: WLTC+ cold engine average (not rated) | S28: n.a. | T28: n.a.
D29: WLTC+ cold engine (-7 degr C) | S29: n.a. | T29: n.a.
C30: Robustness | D30: WLTC+ warm engine | S30: n.a. | T30: n.a.
D31: WLTC+ reg. warm engn. rep. (not rated) | S31: n.a. | T31: n.a.
D32: BAB130 Motorway | S32: n.a. | T32: n.a.
B33: Real-World tests | C33: Approval | D33: PEMS+ Cold Engine 1 | S33: n.a. | T33: n.a.
D34: PEMS+ Cold Engine 2 | S34: n.a. | T34: n.a.
C35: Short urban trip | D35: Short trip / cold start 1 | S35: n.a. | T35: n.a. | V35: n.a. | W35: n.a. | X35: n.a.
D36: Short trip / cold start 2 | S36: n.a. | T36: n.a. | V36: n.a. | W36: n.a. | X36: n.a.
C37: Robustness | D37: Eco / light | S37: n.a. | T37: n.a.
D38: Heavy Load | S38: n.a. | T38: n.a.
E39: g/s ↓ | F39: g/s ↓ | G39: mg/s ↓ | H39: mg/s ↓ | I39: mg/s ↓ | J39: mg/s ↓ | K39: #/s ↓ | L39: n.a. | M39: mg/s ↓ | N39: n.a. | O39: mg/s ↓ | P39: n.a.
D40: Congestion MAX value
D41: Congestion AVG value | U41: n.a. | V41: n.a. | W41: n.a. | X41: n.a. | Y41: n.a. | Z41: n.a.
E42: g/km ↓ | F42: g/km ↓ | G42: mg/km ↓ | H42: mg/km ↓ | I42: mg/km ↓ | J42: mg/km ↓ | K42: #/km ↓ | L42: mg/km ↓ | M42: mg/km ↓ | N42: mg/km ↓ | O42: mg/km ↓ | P42: mg/km ↓
B43: Regene-ration | C43: Insert name of test with particle filter regeneration occurance
C44: Impact of regen. compared to the non-regenerating test [%]

Sheet SPECS
A1: Brand | C1: e.g. Mercedes-Benz | L1: Petrol (inc hybrids) | M1: =IF(ICE_Type=1,TRUE,FALSE) -> TRUE | N1: 1 | O1: Version | P1: Euro 6b
A2: Model: | C2: e.g. V-Class | L2: Diesel (inc. hybrids) | M2: =IF(ICE_Type=2,TRUE,FALSE) -> FALSE | N2: TRUE | O2: 2020.2.0.1 | P2: Euro 6c
A3: Variant Name: | C3: e.g. V250d 9gtronic | L3: Petrol PHEV | M3: =IF(ICE_Type=3,TRUE,FALSE) -> FALSE | P3: Euro 6d-Temp
A4: Test Reference Number: | C4: e.g. 20-FOR-0023 | L4: Diesel PHEV | M4: =IF(ICE_Type=4,TRUE,FALSE) -> FALSE | P4: Euro 6d
A5: Drivetrain: | C5: e.g. 4x2 | L5: ICE - CNG - Mono | M5: =IF(ICE_Type=5,TRUE,FALSE) -> FALSE
A6: Drive axle (FWD/AWD/RWD): | C6: e.g. RWD | L6: ICE - CNG - Dual | M6: =IF(ICE_Type=6,TRUE,FALSE) -> FALSE
A7: Fuel Type: | C7: e.g. diesel | L7: Hydrogen | M7: =IF(ICE_Type=7,TRUE,FALSE) -> FALSE
A8: Primary fuel source (if applicable): | C8: e.g. diesel | L8: Battery Electric | M8: =IF(ICE_Type=8,TRUE,FALSE) -> FALSE
A9: Secondary fuel source (if applicable): | C9: e.g. electric | M9: =COUNTIF(EngineType,"False") -> 4
A10: Fuel tank size liquid fuel (l) | C10: e.g. 70
A11: Fuel tank size gaseous fuel (kg)
A12: Battery Size (kWh):
A13: Published CO2 (WLTP), combined (g/km): | C13: e.g. 132
A14: Published Driving Range (km):
A15: Gearbox type: | C15: e.g. automatic
A16: Chassis Version: | C16: e.g. hatchback
A17: Number of doors: | C17: e.g. 5 doors
A18: VIN tested vehicle: | C18: e.g. WDF44781313651756
A19: Emission class and character: | C19: e.g. Euro 6d-Temp
A20: Country of registration: | C20: e.g. Germany
A21: Engine code: | C21: e.g. 654
A22: Engine volume (cm3): | C22: e.g. 1950
A23: Engine power (kW): | C23: e.g. 140
A24: Torque (Nm): | C24: e.g. 250
A25: Tyre size (front and rear if different): | C25: e.g. 245/45 R19 Y XL
A26: Actual Vehicle Mass (kg) = CoC 13.2 - 75 kg | C26: e.g. 3100

Sheet LIMITS Clean Air
B1: Clean Air (Pollutants)
B3: u p p e r l i m i t s (labtests) | E3: gross excess | G3: u p p e r l i m i t s (PEMS tests) | J3: gross excess | L3: u p p e r l i m i t s (extended bouderies) | O3: gross excess | Q3: PEMS Congestion
C4: petrol | D4: diesel | E4: =IF(Petrol,"petrol",IF(Diesel,"diesel","n.a")) -> petrol | H4: petrol | I4: diesel | J4: =IF(Petrol,"petrol",IF(Diesel,"diesel","n.a")) -> petrol | M4: petrol | N4: diesel | O4: =IF(Petrol,"petrol",IF(Diesel,"diesel","n.a")) -> petrol | R4: max | S4: avg
B5: HC | C5: 58 | D5: =90-32 -> 58 | E5: =IF(OR(Petrol,CNG_Mono,CNG_Dual),1.2*C5,IF(Diesel,1.5*D5,"n.a.")) -> 69.6 | G5: HC | H5: =C5*$J$12 -> 76.56 | I5: 76.56 | J5: =IF(OR(Petrol,CNG_Dual,CNG_Mono),1.5*H5,IF(Diesel,1.5*I5,"n.a.")) -> 114.84 | L5: HC | M5: =C5*$O$12 -> 76.56 | N5: 76.56 | O5: =IF(OR(Petrol,CNG_Mono,CNG_Dual),1.5*M5,IF(Diesel,1.5*N5,"n.a.")) -> 114.84 | R5: mg/s | S5: mg/s
B6: NOx | C6: 60 | D6: 60 | E6: 72 | G6: NOx | H6: 79.2 | I6: 79.2 | J6: 118.8 | L6: NOx | M6: 79.2 | N6: 79.2 | O6: 118.8 | Q6: NOx | R6: 1 | S6: 0.5
B7: NO2 | C7: 20 | D7: 20 | E7: 24 | G7: NO2 | H7: 26.4 | I7: 26.4 | J7: 39.6 | L7: NO2 | M7: 26.4 | N7: 26.4 | O7: 39.6
B8: NH3 | C8: 10 | D8: 10 | E8: 12 | G8: NH3 | H8: 13.2 | I8: 13.2 | J8: 19.8 | L8: NH3 | M8: 13.2 | N8: 13.2 | O8: 19.8
B9: CO | C9: 500 | D9: 500 | E9: 600 | G9: CO | H9: 660 | I9: 660 | J9: 990 | L9: CO | M9: 660 | N9: 660 | O9: 990
B10: PM | C10: 4.5 | D10: 4.5 | E10: 5.4 | G10: PM | H10: 5.94 | I10: 5.94 | J10: 8.91 | L10: PM | M10: 5.94 | N10: 5.94 | O10: 8.91
B11: PN | C11: 600000000000 | D11: 600000000000 | E11: 6000000000000 | G11: PN | H11: 792000000000 | I11: 792000000000 | J11: 1188000000000 | L11: PN | M11: 792000000000 | N11: 792000000000 | O11: 1188000000000
I12: CF: | J12: 1.32 | N12: CF: | O12: 1.32
B13: l o w e r l i m i t s (labtests) | H13: l o w e r l i m i t s (PEMS tests) | M13: l o w e r l i m i t s (WLTC CAT test, -7 C)
B14: petrol AND diesel | H14: petrol AND diesel | M14: petrol AND diesel
B15: HC | D15: 0 | H15: HC | J15: =D15 -> 0 | M15: HC | O15: =J15 -> 0
B16: NOx | D16: 0 | H16: NOx | J16: 0 | M16: NOx | O16: =J16 -> 0
B17: NO2 | C17: NO2 | D17: 0 | H17: NO2 | I17: NO2 | J17: 0 | M17: NO2 | N17: NO2 | O17: 0
B18: NH3 | C18: NH3 | D18: 0 | H18: NH3 | I18: NH3 | J18: 0 | M18: NH3 | N18: NH3 | O18: 0
B19: CO | D19: 0 | H19: CO | J19: 0 | M19: CO | O19: 0
B20: PM | D20: 0 | H20: PM | J20: 0 | M20: PM | O20: 0
B21: PN | D21: 0 | H21: PN | J21: 0 | M21: PN | O21: 0
M22: extended bouderies applicable to:
M23: WLTC CAT test, -7 C
M24: PEMS heavy test
M25: PEMS 8 km

Sheet LIMITS Efficiency
B2: Efficiency
B4: Energy Consumption (total)
B5: limits: | E5: lower | F5: upper | G5: mid
B6: Lab tests | C6: WLTC cold (14 degr C) | D6: kWh/100km | E6: 30 | F6: 90 | G6: 30
C7: WLTC cold (-7 degr C) | D7: kWh/100km | E7: =E6 -> 30 | F7: =F6 -> 90 | G7: =G6 -> 30
C8: WLTC-warm | D8: kWh/100km | E8: =E7 -> 30 | F8: =F7 -> 90 | G8: =G7 -> 30
C9: WLTC -eco | D9: kWh/100km | E9: 30 | F9: 90 | G9: 30
C10: WLTC-sport | D10: kWh/100km | E10: 30 | F10: 90 | G10: 30
B11: PEMS | C11: PEMS+ | D11: kWh/100km | E11: 30 | F11: 90 | G11: 30
B12: robustness | C12: Bab130 | D12: kWh/100km | E12: 30 | F12: 90 | G12: 30
C13: suppl. PEMS | D13: kWh/100km | E13: 30 | F13: 90 | G13: 30
B16: Energy / fuel consumption
B17: multiplication liquid fuel (l/100km) or gaseous fuel (kg/100km) -> energy (kWh/100km)
B18: Petrol | C18: =IF(H18>0,H18,E18) -> 8.64 | D18: default | E18: 8.64 | F18: override value:
B19: Diesel | C19: =IF(H19>0,H19,E19) -> 9.79 | D19: default | E19: 9.79 | F19: override value:
B20: CNG | C20: =IF(H20>0,H20,E20) -> 13.8925 | D20: default | E20: 13.8925 | F20: override value:
B21: Electric | C21: 1
B22: Hydrogene | C22: 33.61 | D22: default | E22: 33.61 | F22: override value:
B24: modifyer for multifuel ICE vehicles
B25: dominant/fall back ratio | E25: 1.5
B26: score modifier (%) | E26: =IF(CNG_Mono,0.1,IF(CNG_Dual,0.5,0)) -> 0
B29: Driving Range
B30: (urban zero tailpipe emissions)
B31: limits: | C31: lower | D31: upper
B32: BEV | C32: 1000 | D32: 100
B33: PHEV | C33: 1000 | D33: 100
B34: ICE | C34: 1000 | D34: 100

Sheet LIMITS Greenhouse
B2: Greenhouse gases
B4: GWP | C4: u p p e r l i m i t s (labtests) | F4: gross excess | H4: u p p e r l i m i t s (PEMS tests) | K4: gross excess | M4: u p p e r l i m i t s (WLTC CAT test, -7 C) | P4: gross excess
D5: petrol | E5: diesel | F5: =IF(Petrol,"petrol",IF(Diesel,"diesel","n.a")) -> petrol | I5: petrol | J5: diesel | K5: =IF(Petrol,"petrol",IF(Diesel,"diesel","n.a")) -> petrol | N5: petrol | O5: diesel | P5: =IF(Petrol,"petrol",IF(Diesel,"diesel","n.a")) -> petrol
B6: 298 | C6: N2O | D6: 6.2 | E6: 6.2 | F6: =IF(OR(Petrol,CNG_Mono,CNG_Dual),1.5*D6,IF(Diesel,1.5*E6,"n.a.")) -> 9.3 | H6: NO2 | I6: =D6*$K$13 -> 9.3 | J6: 9.3 | K6: =IF(Petrol,1.5*I6,IF(Diesel,1.5*J6,"n.a.")) -> 13.95 | M6: NO2 | N6: =D6*$P$13 -> 9.92 | O6: =E6*$P$13 -> 9.92 | P6: =IF(Petrol,1.5*N6,IF(Diesel,1.5*O6,"n.a.")) -> 14.88
B7: 25 | C7: CH4 | D7: 32 | E7: 32 | F7: =IF(OR(Petrol,CNG_Mono,CNG_Dual),1.5*D7,IF(Diesel,1.5*E7,"n.a.")) -> 48 | H7: CH4 | I7: 48 | J7: 48 | K7: =IF(Petrol,1.5*I7,IF(Diesel,1.5*J7,"n.a.")) -> 72 | M7: CH4 | N7: =D7*$P$13 -> 51.2 | O7: =E7*$P$13 -> 51.2 | P7: =IF(Petrol,1.5*N7,IF(Diesel,1.5*O7,"n.a.")) -> 76.8
B8: 1 | C8: CO2 | D8: 175 | E8: 175 | F8: =IF(OR(Petrol,CNG_Mono,CNG_Dual),1.5*D8,IF(Diesel,1.5*E8,"n.a.")) -> 262.5 | H8: CO2 | I8: 262.5 | J8: 262.5 | K8: =IF(Petrol,1.5*I8,IF(Diesel,1.5*J8,"n.a.")) -> 393.75 | M8: CO2 | N8: =D8 -> 175 | O8: =E8 -> 175 | P8: =IF(Petrol,1.5*N8,IF(Diesel,1.5*O8,"n.a.")) -> 262.5
J13: CF: | K13: 1.5 | O13: CF: | P13: 1.6
B14: GWP | C14: l o w e r l i m i t s (labtests) | I14: l o w e r l i m i t s (WLTC CAT test, -7 C) | N14: l o w e r l i m i t s (PEMS tests)
C15: petrol AND diesel | I15: petrol AND diesel | N15: petrol AND diesel
B16: 298 | C16: N2O | D16: NO2 | E16: 0 | I16: N2O | K16: =E16 -> 0 | N16: N2O | P16: =K16 -> 0
B17: 25 | C17: CH4 | D17: CH4 | E17: 0 | I17: CH4 | K17: =E17 -> 0 | N17: CH4 | P17: =K17 -> 0
B18: 1 | C18: CO2 | D18: CO2 | E18: 0 | I18: CO2 | J18: NO2 | K18: =E18 -> 0 | N18: CO2 | O18: NO2 | P18: =K18 -> 0
B26: CO2-eq upstream factor
B28: Petrol | D28: 0.188
B29: Diesel | D29: 0.21
B30: Electricity | C30: NO2 | D30: 217.5
C31: CNG | D31: 0.231
B32: (Hydrogene)

Sheet WEBSITE SUMMARY (hidden)
A1: Car Model | B1: =CONCATENATE(SPECS!B1," ",SPECS!B2) ->  | C1: Comment SV | D1: Type
A2: Type | B2: =CONCATENATE(SPECS!B3," ",SPECS!B5," ",SPECS!B7," ",SPECS!B15) -> 
A3: Release Date | B3: 2020-11-26
A4: Year of Test | B4: 2020
A5: Engine | B5: =SPECS!B21 -> 0
A6: Gearbox | B6: =SPECS!B15 -> 0
A7: Emissions Class | B7: =SPECS!B19 -> 0
A8: Stars | B8: =Stars -> 5
A9: Test # | B9: =SPECS!B4 -> 0
A10: Engine Size 2 | B10: =SPECS!B22 -> 0
A11: Mass | B11: =SPECS!B26 -> 0
A12: Clean Air Index | B12: ='Clean Air'!F113 -> 10
A13: Clean Air Lab Tests - Overall Performance | B13: =Colour_Local('Clean Air'!F106,'Clean Air'!D106) -> Green | C13: Need to check logic (sum of scores/sum of totals or average of percentages?)
A14: CA Cold Test - Score | B14: =ROUND('Clean Air'!F14,1) -> 10
A15: CA Cold Test - NMHC Colour | B15: =Colour_Local('Clean Air'!F7,'Clean Air'!I7) -> Green | C15: previously HC > to be renamed in dashboard
A16: CA Cold Test - NOx Colour | B16: =Colour_Local('Clean Air'!F8,'Clean Air'!I8) -> Green
A17: CA Cold Test - NO2 Colour | B17: Not Used | C17: new | D17: Brown - Green - Orange - Red - Yellow
A18: CA Cold Test - NH3 Colour | B18: =Colour_Local('Clean Air'!F10,'Clean Air'!I10) -> Green | C18: new | D18: Brown - Green - Orange - Red - Yellow
A19: CA Cold Test - CO Colour | B19: =Colour_Local('Clean Air'!F11,'Clean Air'!I11) -> Green
A20: CA Cold Test - PN Colour | B20: =Colour_Local('Clean Air'!F13,'Clean Air'!I13) -> Green
A21: CA Warm Test - Score | B21: =ROUND('Clean Air'!F32,1) -> 10
A22: CA Warm Test - NMHC Colour | B22: =Colour_Local('Clean Air'!F25,'Clean Air'!I25) -> Green | C22: previously HC > to be renamed in dashboard
A23: CA Warm Test - NOx Colour | B23: =Colour_Local('Clean Air'!F26,'Clean Air'!I26) -> Green
A24: CA Warm Test - NO2 Colour | B24: Not Used | C24: new | D24: Brown - Green - Orange - Red - Yellow
A25: CA Warm Test - NH3 Colour | B25: =Colour_Local('Clean Air'!F28,'Clean Air'!I28) -> Green | C25: new | D25: Brown - Green - Orange - Red - Yellow
A26: CA Warm Test - CO Colour | B26: =Colour_Local('Clean Air'!F29,'Clean Air'!I29) -> Green
A27: CA Warm Test - PN Colour | B27: =Colour_Local('Clean Air'!F31,'Clean Air'!I31) -> Green
A28: CA Eco Test - Score | B28: - | C28: only 2019
A29: CA Eco Test - HC Colour | B29: - | C29: only 2019
A30: CA Eco Test - NOx Colour | B30: - | C30: only 2019
A31: CA Eco Test - CO Colour | B31: - | C31: only 2019
A32: CA Eco Test - PN Colour | B32: - | C32: only 2019
A33: CA Sport Test - Score | B33: - | C33: only 2019
A34: CA Sport Test - HC Colour | B34: - | C34: only 2019
A35: CA Sport Test - NOx Colour | B35: - | C35: only 2019
A36: CA Sport Test - CO Colour | B36: - | C36: only 2019
A37: CA Sport Test - PN Colour | B37: - | C37: only 2019
A38: CA Cold Ambient Test - Score | B38: =ROUND('Clean Air'!F23,1) -> 10 | C38: new | D38: Number - 1 decimal place
A39: CA Cold Ambient Test - NMHC Colour | B39: =Colour_Local('Clean Air'!F16,'Clean Air'!I16) -> Green | C39: new | D39: Brown - Green - Orange - Red - Yellow
A40: CA Cold Ambient Test - NOx Colour | B40: =Colour_Local('Clean Air'!F17,'Clean Air'!I17) -> Green | C40: new | D40: Brown - Green - Orange - Red - Yellow
A41: CA Cold Ambient Test - NO2 Colour | B41: Not Used | C41: new | D41: Brown - Green - Orange - Red - Yellow
A42: CA Cold Ambient Test - NH3 Colour | B42: =Colour_Local('Clean Air'!F19,'Clean Air'!I19) -> Green | C42: new | D42: Brown - Green - Orange - Red - Yellow
A43: CA Cold Ambient Test - CO Colour | B43: =Colour_Local('Clean Air'!F20,'Clean Air'!I20) -> Green | C43: new | D43: Brown - Green - Orange - Red - Yellow
A44: CA Cold Ambient Test - PN Colour | B44: =Colour_Local('Clean Air'!F22,'Clean Air'!I22) -> Green | C44: new | D44: Brown - Green - Orange - Red - Yellow
A45: CA Highway Test - Score | B45: =ROUND('Clean Air'!F62,1) -> 10
A46: CA Highway Test - NMHC Colour | B46: =Colour_Local('Clean Air'!F55,'Clean Air'!I55) -> Green | C46: previously HC > to be renamed in dashboard
A47: CA Highway Test - NOx Colour | B47: =Colour_Local('Clean Air'!F56,'Clean Air'!I56) -> Green
A48: CA Highway Test - NO2 Colour | B48: Not Used | C48: new | D48: Brown - Green - Orange - Red - Yellow
A49: CA Highway Test - NH3 Colour | B49: =Colour_Local('Clean Air'!F58,'Clean Air'!I58) -> Green | C49: new | D49: Brown - Green - Orange - Red - Yellow
A50: CA Highway Test - CO Colour | B50: =Colour_Local('Clean Air'!F59,'Clean Air'!I59) -> Green
A51: CA Highway Test - PN Colour | B51: =Colour_Local('Clean Air'!F61,'Clean Air'!I61) -> Green
A52: CA Road Test - Overall Performance Colour | B52: =Colour_Local('Clean Air'!F107,'Clean Air'!D107) -> Green
A53: CA On Road Drive - Score | B53: =ROUND(AVERAGE('Clean Air'!F42,'Clean Air'!F51),1) -> 5
A54: CA On Road Drive - NMHC Colour | B54: Grey | C54: previously HC > to be renamed in dashboard
A55: CA On Road Drive - NOx Colour | B55: =Colour_Local(AVERAGE('Clean Air'!F36,'Clean Air'!F45),'Clean Air'!I36) -> Green
A56: CA On Road Drive - NO2 Colour | B56: Grey | C56: new | D56: Brown - Green - Orange - Red - Yellow
A57: CA On Road Drive - NH3 Colour | B57: Grey | C57: new | D57: Brown - Green - Orange - Red - Yellow
A58: CA On Road Drive - CO Colour | B58: =Colour_Local(AVERAGE('Clean Air'!F39,'Clean Air'!F48),'Clean Air'!I48) -> Green
A59: CA On Road Drive - PN Colour | B59: =Colour_Local(AVERAGE('Clean Air'!F41,'Clean Air'!F50),'Clean Air'!I50) -> Green
A60: CA Robustness - Overall Performance Colour | B60: =Colour_Local('Clean Air'!F108,'Clean Air'!D108) -> Green
A61: CA Light Load - Score | B61: =ROUND('Clean Air'!F71,1) -> 5
A62: CA Light Load - NMHC Colour | B62: Grey
A63: CA Light Load - NOx Colour | B63: =Colour_Local('Clean Air'!F65,'Clean Air'!I65) -> Green
A64: CA Light Load - NO2 Colour | B64: Grey
A65: CA Light Load - NH3 Colour | B65: Grey
A66: CA Light Load - CO Colour | B66: =Colour_Local('Clean Air'!F68,'Clean Air'!I68) -> Green
A67: CA Light Load - PN Colour | B67: =Colour_Local('Clean Air'!F70,'Clean Air'!I70) -> Green
A68: CA Heavy Load - Score | B68: =ROUND('Clean Air'!F80,1) -> 8
A69: CA Heavy Load - NMHC Colour | B69: Grey
A70: CA Heavy Load - NOx Colour | B70: =Colour_Local('Clean Air'!F74,'Clean Air'!I74) -> Green
A71: CA Heavy Load - NO2 Colour | B71: Grey
A72: CA Heavy Load - NH3 Colour | B72: Grey
A73: CA Heavy Load - CO Colour | B73: =Colour_Local('Clean Air'!F77,'Clean Air'!I77) -> Green
A74: CA Heavy Load - PN Colour | B74: =Colour_Local('Clean Air'!F79,'Clean Air'!I79) -> Green
A75: CA Short Trip - Score | B75: =ROUND('Clean Air'!F88,1) -> 5
A76: CA Short Trip - NMHC Colour | B76: Grey
A77: CA Short Trip - NOx Colour | B77: =Colour_Local(AVERAGE('Clean Air'!F82,'Clean Air'!F85),'Clean Air'!I85) -> Green
A78: CA Short Trip - NO2 Colour | B78: Grey
A79: CA Short Trip - NH3 Colour | B79: Grey
A80: CA Short Trip - CO Colour | B80: =Colour_Local(AVERAGE('Clean Air'!F83,'Clean Air'!F86),'Clean Air'!I86) -> Green
A81: CA Short Trip - PN Colour | B81: =Colour_Local(AVERAGE('Clean Air'!F84,'Clean Air'!F87),'Clean Air'!I87) -> Green
A82: CA Congestion - Score | B82: =ROUND('Clean Air'!F98,1) -> 2
A83: CA Congestion - NMHC Colour | B83: Grey
A84: CA Congestion - NOx Colour | B84: =Colour_Local('Clean Air'!F91,'Clean Air'!I91) -> Green
A85: CA Congestion - NO2 Colour | B85: Grey
A86: CA Congestion - NH3 Colour | B86: Grey
A87: CA Congestion - CO Colour | B87: Grey
A88: CA Congestion - PN Colour | B88: Grey
A89: Clean Air Comments | B89: Lorem ipsum dolor sit amet, consectetur adipiscing elit, sed do eiusmod tempor incididunt ut labore et dolore magna aliqua. Ut enim ad minim veniam, quis nostrud exercitation ullamco laboris nisi ut aliquip ex ea commodo consequat. Duis aute irure dolor in reprehenderit in voluptate velit esse cillum dolore eu fugiat nulla pariatur. Excepteur sint occaecat cupidatat non proident, sunt in culpa qui officia deserunt mollit anim id est laborum.
A90: Energy Efficiency Index | B90: =Efficiency!E53 -> 10
A91: Energy Efficiency Lab Tests - Overall performance | B91: =Colour_Local(Efficiency!E53,10) -> Green
A92: EE Cold Test - Score | B92: =ROUND(Efficiency!F10,1) -> 10
A93: EE Cold Test - Energy Eff Colour | B93: =Colour_Local(Efficiency!F10,Efficiency!I10) -> Green
A94: EE Cold Test - Electric Efficiency Value | B94: =ROUND(Efficiency!P10,1) -> 0
A95: EE Warm Test - Score | B95: =ROUND(Efficiency!F12,1) -> 10
A96: EE Warm Test - Energy Eff Colour | B96: =Colour_Local(Efficiency!F12,Efficiency!I12) -> Green
A97: EE Warm Test - Electric Efficiency Value | B97: =ROUND(Efficiency!P12,1) -> 0
A98: EE Eco Test - Score | B98: - | C98: only 2019
A99: EE Eco Test - Energy Eff Colour | B99: - | C99: only 2019
A100: EE Eco Test - Electric Efficiency Value | B100: - | C100: only 2019
A101: EE Sport Test - Score | B101: - | C101: only 2019
A102: EE Sport Test - Energy Eff Colour | B102: - | C102: only 2019
A103: EE Sport Test - Electric Efficiency Value | B103: - | C103: only 2019
A104: EE Cold Ambient Test - Score | B104: =ROUND(Efficiency!F11,1) -> 10 | C104: new | D104: Number - 1 decimal place
A105: EE Cold Ambient Test - Energy Eff Colour | B105: =Colour_Local(Efficiency!F11,Efficiency!I11) -> Green | C105: new | D105: Brown - Green - Orange - Red - Yellow
A106: EE Cold Ambient Test - Electric Efficiency Value | B106: =ROUND(Efficiency!P11,1) -> 0 | C106: new | D106: Number
A107: EE Highway Test - Score | B107: =ROUND(Efficiency!F15,1) -> 10
A108: EE Highway Test - Energy Eff Colour | B108: =Colour_Local(Efficiency!F15,Efficiency!I15) -> Green
A109: EE Highway Test - Electric Efficiency Value | B109: =ROUND(Efficiency!P15,1) -> 0
A110: Average Consumption (1st fuel source) | B110: =ROUND(IF(OR(Petrol,Diesel),Efficiency!M19,IF(Electric,Efficiency!P19,IF(OR(CNG_Dual,CNG_Mono,Hydrogen),Efficiency!S19,"???"))),1) -> 0
A111: Worst-Case Consumption (1st fuel source) | B111: =ROUND(IF(OR(Petrol,Diesel),Efficiency!M20,IF(Electric,Efficiency!P20,IF(OR(CNG_Dual,CNG_Mono,Hydrogen),Efficiency!S20,"???"))),1) -> 0
A112: Average Consumption (2nd fuel source) | B112: =IF(OR(Petrol_PHEV,Diesel_PHEV),Efficiency!P19,IF(CNG_Dual,Efficiency!M19,"")) -> 
A113: Worst-Case Consumption (2nd fuel source) | B113: =IF(OR(Petrol_PHEV,Diesel_PHEV),Efficiency!P20,IF(CNG_Dual,Efficiency!M20,"")) -> 
A114: Driving Range - Average (1st fuel source) | B114: =ROUND(IF(OR(Petrol,Diesel),Efficiency!M34,IF(Electric,Efficiency!P34,IF(OR(CNG_Dual,CNG_Mono,Hydrogen),Efficiency!S34,"???"))),0) -> 0
A115: Driving Range - Worst-Case (1st fuel source) | B115: =ROUND(IF(OR(Petrol,Diesel),Efficiency!M35,IF(Electric,Efficiency!P35,IF(OR(CNG_Dual,CNG_Mono,Hydrogen),Efficiency!S35,"???"))),0) -> 0
A116: Driving Range - Average (2nd fuel source) | B116: =IF(OR(Petrol_PHEV,Diesel_PHEV),Efficiency!P34,IF(CNG_Dual,Efficiency!M34,"")) -> 
A117: Driving Range - Worst-Case (2nd fuel source) | B117: =IF(OR(Petrol_PHEV,Diesel_PHEV),Efficiency!P35,IF(CNG_Dual,Efficiency!M35,"")) -> 
A118: Energy Efficiency Comment | B118: Lorem ipsum dolor sit amet, consectetur adipiscing elit, sed do eiusmod tempor incididunt ut labore et dolore magna aliqua. Ut enim ad minim veniam, quis nostrud exercitation ullamco laboris nisi ut aliquip ex ea commodo consequat. Duis aute irure dolor in reprehenderit in voluptate velit esse cillum dolore eu fugiat nulla pariatur. Excepteur sint occaecat cupidatat non proident, sunt in culpa qui officia deserunt mollit anim id est laborum.
A119: Greenhouse Gases Index | B119: =ROUND(Greenhouse!F86,1) -> 10 | C119: new | D119: Number - 1 decimal place
A120: Greenhouse Gases - Overall Performance | B120: =Colour_Local(SUM(Greenhouse!F50,Greenhouse!F26,Greenhouse!F19,Greenhouse!F12),SUM(Greenhouse!D6,Greenhouse!D13,Greenhouse!D20,Greenhouse!D44)) -> Green | C120: new | D120: Brown - Green - Orange - Red - Yellow
A121: GG Cold Test - Score | B121: =ROUND(Greenhouse!F12,1) -> 7 | C121: new | D121: Number - 1 decimal place
A122: GG Cold Test - CO2 Colour | B122: =Colour_Local(Greenhouse!F9,Greenhouse!I9) -> Green | C122: added GG > to be renamed in the dashboard
A123: GG Cold Test - N2O Colour | B123: =Colour_Local(Greenhouse!F7,Greenhouse!I7) -> Green | C123: new | D123: Brown - Green - Orange - Red - Yellow
A124: GG Cold Test - CH4 Colour | B124: =Colour_Local(Greenhouse!F8,Greenhouse!I8) -> Green | C124: new | D124: Brown - Green - Orange - Red - Yellow
A125: GG Warm Test - Score | B125: =ROUND(Greenhouse!F26,1) -> 7 | C125: new | D125: Number - 1 decimal place
A126: GG Warm Test - CO2 Colour | B126: =Colour_Local(Greenhouse!F23,Greenhouse!I23) -> Green | C126: added GG > to be renamed in the dashboard
A127: GG Warm Test - N2O Colour | B127: =Colour_Local(Greenhouse!F21,Greenhouse!I21) -> Green | C127: new | D127: Brown - Green - Orange - Red - Yellow
A128: GG Warm Test - CH4 Colour | B128: =Colour_Local(Greenhouse!F22,Greenhouse!I22) -> Green | C128: new | D128: Brown - Green - Orange - Red - Yellow
A129: Eco Test - CO2 Colour | B129: - | C129: only 2019
A130: Sport Test - CO2 Colour | B130: - | C130: only 2019
A131: GG Cold Ambient Test - Score | B131: =ROUND(Greenhouse!F19,1) -> 7 | C131: new | D131: Number - 1 decimal place
A132: GG Cold Ambient Test - CO2 Colour | B132: =Colour_Local(Greenhouse!F16,Greenhouse!I16) -> Green | C132: new | D132: Brown - Green - Orange - Red - Yellow
A133: GG Cold Ambient Test - N2O Colour | B133: =Colour_Local(Greenhouse!F14,Greenhouse!I14) -> Green | C133: new | D133: Brown - Green - Orange - Red - Yellow
A134: GG Cold Ambient Test - CH4 Colour | B134: =Colour_Local(Greenhouse!F15,Greenhouse!I15) -> Green | C134: new | D134: Brown - Green - Orange - Red - Yellow
A135: GG Highway Test - Score | B135: =ROUND(Greenhouse!F50,1) -> 7 | C135: new | D135: Number - 1 decimal place
A136: GG Highway Test - CO2 Colour | B136: =Colour_Local(Greenhouse!F47,Greenhouse!I47) -> Green | C136: added GG > to be renamed in the dashboard
A137: GG Highway Test - N2O Colour | B137: =Colour_Local(Greenhouse!F45,Greenhouse!I45) -> Green | C137: new | D137: Brown - Green - Orange - Red - Yellow
A138: GG Highway Test - CH4 Colour | B138: =Colour_Local(Greenhouse!F46,Greenhouse!I46) -> Green | C138: new | D138: Brown - Green - Orange - Red - Yellow
A139: Greenhouse Gases Comment | B139: Lorem ipsum dolor sit amet, consectetur adipiscing elit, sed do eiusmod tempor incididunt ut labore et dolore magna aliqua. Ut enim ad minim veniam, quis nostrud exercitation ullamco laboris nisi ut aliquip ex ea commodo consequat. Duis aute irure dolor in reprehenderit in voluptate velit esse cillum dolore eu fugiat nulla pariatur. Excepteur sint occaecat cupidatat non proident, sunt in culpa qui officia deserunt mollit anim id est laborum. | C139: new | D139: Long text!!
A140: Verdict | B140: Lorem ipsum dolor sit amet, consectetur adipiscing elit, sed do eiusmod tempor incididunt ut labore et dolore magna aliqua. Ut enim ad minim veniam, quis nostrud exercitation ullamco laboris nisi ut aliquip ex ea commodo consequat. Duis aute irure dolor in reprehenderit in voluptate velit esse cillum dolore eu fugiat nulla pariatur. Excepteur sint occaecat cupidatat non proident, sunt in culpa qui officia deserunt mollit anim id est laborum.
A141: VIN of Tested Car | B141: =SPECS!B18 -> 0
A142: Mass | B142: =SPECS!B26 -> 0
A143: Engine Size | B143: =SPECS!B22 -> 0
A144: Engine Power | B144: =SPECS!B23 -> 0
A145: Torque | B145: =SPECS!B24 -> 0
A146: Tyres | B146: =SPECS!B25 -> 0
A147: Published CO2 | B147: =SPECS!B13 -> 0
A148: Rating Validity | B148: =SPECS!B18 -> 0
A149: Consumption type (l - kg - kW) | B149: =IF(OR(Petrol,Diesel),"l",IF(OR(Hydrogen,CNG_Mono),"kg",IF(Electric,"kW","???"))) -> l
A150: Consumption per | B150: 100km
A151: Primary fuel source | B151: =IF(OR(Petrol,Petrol_PHEV),"Petrol",IF(OR(Diesel,Diesel_PHEV),"Diesel",IF(Hydrogen,"Hydrogen Fuel Cell",IF(CNG_Mono,"CNG",IF(Electric,"Electric",IF(CNG_Dual,"CNG","???")))))) -> Petrol
A152: Secondary fuel source | B152: =IF(OR(Petrol_PHEV,Diesel_PHEV),"Electric",IF(CNG_Dual,"Petrol","")) -> 
A153: Published Range | B153: =SPECS!B14 -> 0
A154: Primary fuel consumption units | B154: =IF(OR(Petrol,Diesel,Petrol_PHEV,Diesel_PHEV),"l/100km",IF(OR(CNG_Dual,CNG_Mono,Hydrogen),"kg/100km",IF(Electric,"kWh/100km"))) -> l/100km
A155: Secondary fuel consumption units | B155: =IF(OR(Petrol_PHEV,Diesel_PHEV),"kWh/100km",IF(CNG_Dual,"l/100km","")) -> 
A156: Single/Dual Fuel source | B156: =IF(OR(Petrol,Diesel,CNG_Mono,Hydrogen,Electric),"Single",IF(OR(Petrol_PHEV,Diesel_PHEV,CNG_Dual),"Dual","?????")) -> Single
A157: Battery capacity | B157: =SPECS!B12 -> 0
A158: Drivetrain | B158: =SPECS!B5 -> 0
A159: Short_Variant
